Workbook

Sheet 1、收支总表
A1: 附件1：
A2: 收支预算总表
A3: 单位名称:洗马乡财政所 | F3: 单位:元
A4: 收入 | C4: 支出
A5: 项目 | B5: 预算数 | C5: 项目 | D5: 预算数 | E5: 项目 | F5: 预算数
A6: 一、公共财政预算拨款 | B6: 6,293,173.46 | C6: 一、一般公共服务支出 | D6: 2,589,682.36 | E6: 一、人员支出 | F6: 2,801,373.46
A7: 经费拨款 | B7: 6,160,773.46 | C7: 二、公共安全支出 | D7: 0.00 | E7: 工资福利支出 | F7: 2,801,373.46
A8: 在职人员经费拨款 | B8: 2,801,373.46 | C8: 三、教育支出 | D8: 0.00 | E8: 对个人和家庭的补助 | F8: 0.00
A9: 离退休人员经费拨款 | B9: 0.00 | C9: 四、科学技术支出 | D9: 0.00 | E9: 二、公用支出 | F9: 1,282,400.00
A10: 公用经费拨款 | B10: 1,150,000.00 | C10: 五、文化体育与传媒支出 | D10: 0.00 | E10: 一般商品和服务支出 | F10: 1,282,400.00
A11: 专项经费拨款 | B11: 2,209,400.00 | C11: 六、社会保障和就业支出 | D11: 68,999.91 | E11: 三、项目支出 | F11: 2,209,400.00
A12: 纳入公共预算管理的非税收入拨款 | B12: 132,400.00 | C12: 七、医疗卫生与计划生育支出 | D12: 289,868.04 | E12: 专项商品和服务支出 | F12: 2,209,400.00
A13: 专项收入 | B13: 0.00 | C13: 八、节能环保支出 | D13: 0.00 | E13: 专项对个人和家庭补助 | F13: 0.00
A14: 行政事业性收费收入 | B14: 0.00 | C14: 九、城乡社区支出 | D14: 0.00 | E14: 资本性支出（基本建设） | F14: 0.00
A15: 罚没收入 | B15: 0.00 | C15: 十、农林水支出 | D15: 2,816,537.41 | E15: 资本性支出 | F15: 0.00
A16: 国有资本经营收入 | B16: 0.00 | C16: 十一、交通运输支出 | D16: 0.00 | E16: 对企业补助 | F16: 0.00
A17: 国有资源（资产）有偿使用收入 | B17: 132,400.00 | C17: 十二、资源勘探信息等支出 | D17: 0.00 | E17: 其他支出 | F17: 0.00
A18: 其他收入 | B18: 0.00 | C18: 十三、商品服务业等支出 | D18: 0.00 | E18: 四、上缴政府统筹支出 | F18: 0.00
A19: 二、政府性基金拨款 | B19: 0.00 | C19: 十四、金融支出 | D19: 0.00
A20: 三、国有资本经营收入 | B20: 0.00 | C20: 十五、国土海洋气象等支出 | D20: 244,562.65
A21: 四、财政专户管理的非税收入拨款 | B21: 0.00 | C21: 十六、住房保障支出 | D21: 0.00
A22: 五、上级补助收入 | B22: 0.00 | C22: 十七、粮油物资储备支出 | D22: 0.00
A23: 公共财政补助 | B23: 0.00 | C23: 十八、其他支出 | D23: 0.00
A24: 政府性基金补助 | B24: 0.00
A25: 本年收入合计 | B25: 6,293,173.46 | E25: 本年支出合计 | F25: 6,293,173.46
A26: 六、上年结转 | B26: 0.00 | E26: 五、结转下年 | F26: 0.00
A27: 收入总计 | B27: 6,293,173.46 | C27: 支出总计 | D27: 6,009,650.37 | E27: 支出总计 | F27: 6,293,173.46

Sheet 2丶部门收入总表
A1: 附件2：
A2: 部门收入总体情况表
A3: 单位名称:洗马乡财政所 | I3: 单位：元
A4: 单位 | C4: 总计 | D4: 一般公共预算拨款 | E4: 政府性基金拨款 | F4: 国有资本经营预算拨款 | G4: 纳入专户管理的非税收入拨款 | H4: 中央财政补助
A5: 单位代码 | B5: 单位名称 | H5: 一般公共预算补助 | I5: 政府性基金补助
B6: 合计 | C6: =SUM(C7:C18) -> 6,293,173.46 | D6: 6,293,173.46 | E6: 0.00 | F6: 0.00 | G6: 0.00 | H6: 0.00 | I6: 0.00
A7: 937001 | B7: 洗马乡财政所本级 | C7: 169,040.40 | D7: 169,040.40 | E7: 0.00 | F7: 0.00 | G7: 0.00 | H7: 0.00 | I7: 0.00
A8: 937002 | B8: 洗马乡政府 | C8: 4,520,041.96 | D8: 4,520,041.96 | E8: 0.00 | F8: 0.00 | G8: 0.00 | H8: 0.00 | I8: 0.00
A9: 937003 | B9: 洗马乡计生 | C9: 289,868.04 | D9: 289,868.04 | E9: 0.00 | F9: 0.00 | G9: 0.00 | H9: 0.00 | I9: 0.00
A10: 937004 | B10: 洗马乡安监 | C10: 283,523.09 | D10: 283,523.09 | E10: 0.00 | F10: 0.00 | G10: 0.00 | H10: 0.00 | I10: 0.00
A11: 937005 | B11: 洗马乡农机 | C11: 61,704.67 | D11: 61,704.67 | E11: 0.00 | F11: 0.00 | G11: 0.00 | H11: 0.00 | I11: 0.00
A12: 937006 | B12: 洗马乡经管 | C12: 68,999.91 | D12: 68,999.91 | E12: 0.00 | F12: 0.00 | G12: 0.00 | H12: 0.00 | I12: 0.00
A13: 937007 | B13: 洗马乡统计 | C13: 62,147.47 | D13: 62,147.47 | E13: 0.00 | F13: 0.00 | G13: 0.00 | H13: 0.00 | I13: 0.00
A14: 937008 | B14: 洗马乡农技 | C14: 260,968.40 | D14: 260,968.40 | E14: 0.00 | F14: 0.00 | G14: 0.00 | H14: 0.00 | I14: 0.00
A15: 937009 | B15: 洗马乡畜牧 | C15: 143,901.60 | D15: 143,901.60 | E15: 0.00 | F15: 0.00 | G15: 0.00 | H15: 0.00 | I15: 0.00
A16: 937015 | B16: 洗马乡国土站 | C16: 134,450.96 | D16: 134,450.96 | E16: 0.00 | F16: 0.00 | G16: 0.00 | H16: 0.00 | I16: 0.00
A17: 937016 | B17: 洗马乡规划站 | C17: 110,111.69 | D17: 110,111.69 | E17: 0.00 | F17: 0.00 | G17: 0.00 | H17: 0.00 | I17: 0.00
A18: 937018 | B18: 洗马乡林业站 | C18: 188,415.27 | D18: 188,415.27 | E18: 0.00 | F18: 0.00 | G18: 0.00 | H18: 0.00 | I18: 0.00

Sheet 3丶部门支出总表
A1: 附件3：
A2: 部门支出总体情况表
A3: 单位名称:洗马乡财政所 | K3: 单位：元
A4: 科目 | E4: 总计 | F4: 一般公共预算拨款 | G4: 政府性基金拨款 | H4: 国有资本经营预算拨款 | I4: 纳入专户管理的非税收入拨款 | J4: 上级财政补助
A5: 科目编码 | D5: 科目名称 | J5: 一般公共预算补助 | K5: 政府性基金补助
A6: 类 | B6: 款 | C6: 项
D7: 合计 | E7: =E8+E13+E16+E22+E32+E36 -> 6,293,173.46 | F7: 6,293,173.46 | G7: 0.00 | H7: 0.00 | I7: 0.00 | J7: 0.00 | K7: 0.00
A8: 201 | D8: 一般公共服务支出 | E8: =E9+E11 -> 2,589,682.36 | F8: 2,589,682.36 | G8: 0.00 | H8: 0.00 | I8: 0.00 | J8: 0.00 | K8: 0.00
A9: 201 | B9: 03 | D9: 政府办公厅（室）及相关机构事务 | E9: =E10 -> 2,420,641.96 | F9: 2,420,641.96 | G9: 0.00 | H9: 0.00 | I9: 0.00 | J9: 0.00 | K9: 0.00
A10: 201 | B10: 03 | C10: 01 | D10: 行政运行（政府办公厅（室）及相关机构事务） | E10: 2,420,641.96 | F10: 2,420,641.96 | G10: 0.00 | H10: 0.00 | I10: 0.00 | J10: 0.00 | K10: 0.00
A11: 201 | B11: 06 | D11: 财政事务 | E11: =E12 -> 169,040.40 | F11: 169,040.40 | G11: 0.00 | H11: 0.00 | I11: 0.00 | J11: 0.00 | K11: 0.00
A12: 201 | B12: 06 | C12: 01 | D12: 行政运行（财政事务） | E12: 169,040.40 | F12: 169,040.40 | G12: 0.00 | H12: 0.00 | I12: 0.00 | J12: 0.00 | K12: 0.00
A13: 208 | D13: 社会保障和就业支出 | E13: =E14 -> 68,999.91 | F13: 68,999.91 | G13: 0.00 | H13: 0.00 | I13: 0.00 | J13: 0.00 | K13: 0.00
A14: 208 | B14: 01 | D14: 人力资源和社会保障管理事务 | E14: =E15 -> 68,999.91 | F14: 68,999.91 | G14: 0.00 | H14: 0.00 | I14: 0.00 | J14: 0.00 | K14: 0.00
A15: 208 | B15: 01 | C15: 01 | D15: 行政运行（人力资源和社会保障管理事务） | E15: 68,999.91 | F15: 68,999.91 | G15: 0.00 | H15: 0.00 | I15: 0.00 | J15: 0.00 | K15: 0.00
A16: 210 | D16: 卫生健康支出 | E16: =E17+E19 -> 289,868.04 | F16: 289,868.04 | G16: 0.00 | H16: 0.00 | I16: 0.00 | J16: 0.00 | K16: 0.00
A17: 210 | B17: 01 | D17: 卫生健康管理事物 | E17: =E18 -> 179,868.04 | F17: 179,868.04 | G17: 0.00 | H17: 0.00 | I17: 0.00 | J17: 0.00 | K17: 0.00
A18: 210 | B18: 01 | C18: 01 | D18: 行政运行（卫生健康管理事务） | E18: 179,868.04 | F18: 179,868.04 | G18: 0.00 | H18: 0.00 | I18: 0.00 | J18: 0.00 | K18: 0.00
A19: 210 | B19: 07 | D19: 计划生育事务 | E19: =SUM(E20:E21) -> 110,000.00 | F19: 110,000.00 | G19: 0.00 | H19: 0.00 | I19: 0.00 | J19: 0.00 | K19: 0.00
A20: 210 | B20: 07 | C20: 16 | D20: 计划生育机构 | E20: 31,000.00 | F20: 31,000.00 | G20: 0.00 | H20: 0.00 | I20: 0.00 | J20: 0.00 | K20: 0.00
A21: 210 | B21: 07 | C21: 99 | D21: 其他计划生育事务支出 | E21: 79,000.00 | F21: 79,000.00 | G21: 0.00 | H21: 0.00 | I21: 0.00 | J21: 0.00 | K21: 0.00
A22: 213 | D22: 农林水支出 | E22: =E23+E28+E30 -> 2,816,537.41 | F22: 2,816,537.41 | G22: 0.00 | H22: 0.00 | I22: 0.00 | J22: 0.00 | K22: 0.00
A23: 213 | B23: 01 | D23: 农业农村 | E23: =SUM(E24:E27) -> 528,722.14 | F23: 528,722.14 | G23: 0.00 | H23: 0.00 | I23: 0.00 | J23: 0.00 | K23: 0.00
A24: 213 | B24: 01 | C24: 01 | D24: 行政运行（农业） | E24: 62,147.47 | F24: 62,147.47 | G24: 0.00 | H24: 0.00 | I24: 0.00 | J24: 0.00 | K24: 0.00
A25: 213 | B25: 01 | C25: 01 | D25: 行政运行（农业） | E25: 61,704.67 | F25: 61,704.67 | G25: 0.00 | H25: 0.00 | I25: 0.00 | J25: 0.00 | K25: 0.00
A26: 213 | B26: 01 | C26: 01 | D26: 行政运行（农业） | E26: 260,968.40 | F26: 260,968.40 | G26: 0.00 | H26: 0.00 | I26: 0.00 | J26: 0.00 | K26: 0.00
A27: 213 | B27: 01 | C27: 01 | D27: 行政运行（农业） | E27: 143,901.60 | F27: 143,901.60 | G27: 0.00 | H27: 0.00 | I27: 0.00 | J27: 0.00 | K27: 0.00
A28: 213 | B28: 02 | D28: 林业 | E28: =E29 -> 188,415.27 | F28: 188,415.27 | G28: 0.00 | H28: 0.00 | I28: 0.00 | J28: 0.00 | K28: 0.00
A29: 213 | B29: 02 | C29: 01 | D29: 行政运行（林业） | E29: 188,415.27 | F29: 188,415.27 | G29: 0.00 | H29: 0.00 | I29: 0.00 | J29: 0.00 | K29: 0.00
A30: 213 | B30: 07 | D30: 农村综合改革 | E30: =E31 -> 2,099,400.00 | F30: 2,099,400.00 | G30: 0.00 | H30: 0.00 | I30: 0.00 | J30: 0.00 | K30: 0.00
A31: 213 | B31: 07 | C31: 05 | D31: 对村民委员会和村党支部的补助 | E31: 2,099,400.00 | F31: 2,099,400.00 | G31: 0.00 | H31: 0.00 | I31: 0.00 | J31: 0.00 | K31: 0.00
A32: 220 | D32: 自然资源海洋气象等支出 | E32: =E33 -> 244,562.65 | F32: 244,562.65 | G32: 0.00 | H32: 0.00 | I32: 0.00 | J32: 0.00 | K32: 0.00
A33: 220 | B33: 01 | D33: 自然资源事务 | E33: =SUM(E34:E35) -> 244,562.65 | F33: 244,562.65 | G33: 0.00 | H33: 0.00 | I33: 0.00 | J33: 0.00 | K33: 0.00
A34: 220 | B34: 01 | C34: 01 | D34: 行政运行（自然资源事务） | E34: 134,450.96 | F34: 134,450.96 | G34: 0.00 | H34: 0.00 | I34: 0.00 | J34: 0.00 | K34: 0.00
A35: 220 | B35: 01 | C35: 04 | D35: 国土资源规划及管理 | E35: 110,111.69 | F35: 110,111.69 | G35: 0.00 | H35: 0.00 | I35: 0.00 | J35: 0.00 | K35: 0.00
A36: 224 | D36: 灾害防治及应急管理支出 | E36: =E37 -> 283,523.09 | F36: 283,523.09 | G36: 0.00 | H36: 0.00 | I36: 0.00 | J36: 0.00 | K36: 0.00
A37: 224 | B37: 01 | D37: 应急管理事物 | E37: =E38 -> 283,523.09 | F37: 283,523.09 | G37: 0.00 | H37: 0.00 | I37: 0.00 | J37: 0.00 | K37: 0.00
A38: 224 | B38: 01 | C38: 06 | D38: 安全监管 | E38: 283,523.09 | F38: 283,523.09 | G38: 0.00 | H38: 0.00 | I38: 0.00 | J38: 0.00 | K38: 0.00

Sheet 4丶部门支出总表（分类）
A1: 附件4：
A2: 部门支出总表(按部门预算经济分类)
A3: 单位名称：洗马乡财政所 | S3: 单位：元
A4: 功能科目 | E4: 总 计 | F4: 基本支出 | J4: 项目支出 | S4: 上缴政府统筹支出
A5: 科目编码 | D5: 科目名称 | F5: 合计 | G5: 工资福利支出 | H5: 一般商品和服务支出 | I5: 对个人和家庭的补助 | J5: 合计 | K5: 按项目管理的商品和服务支出 | L5: 按项目管理的对个人和家庭的补助 | M5: 债务利息及费用支出 | N5: 资本性支出(基本建设) | O5: 资本性支出 | P5: 对企业补助(基本建设) | Q5: 对企业补助 | R5: 其他支出
A6: 类 | B6: 款 | C6: 项
D7: 合计 | E7: =E8+E13+E16+E22+E32+E36 -> 6,293,173.46 | F7: 4,083,773.46 | G7: 2,801,373.46 | H7: 1,282,400.00 | I7: 0.00 | J7: 2,209,400.00 | K7: 2,209,400.00 | L7: 0.00 | M7: 0.00 | N7: 0.00 | O7: 0.00 | P7: 0.00 | Q7: 0.00 | R7: 0.00 | S7: 0.00
A8: 201 | D8: 一般公共服务支出 | E8: =E9+E11 -> 2,589,682.36 | F8: 2,589,682.36 | G8: 1,307,282.36 | H8: 1,282,400.00 | I8: 0.00 | J8: 0.00 | K8: 0.00 | L8: 0.00 | M8: 0.00 | N8: 0.00 | O8: 0.00 | P8: 0.00 | Q8: 0.00 | R8: 0.00 | S8: 0.00
A9: 201 | B9: 03 | D9: 政府办公厅（室）及相关机构事务 | E9: =E10 -> 2,420,641.96 | F9: 2,420,641.96 | G9: 1,138,241.96 | H9: 1,282,400.00 | I9: 0.00 | J9: 0.00 | K9: 0.00 | L9: 0.00 | M9: 0.00 | N9: 0.00 | O9: 0.00 | P9: 0.00 | Q9: 0.00 | R9: 0.00 | S9: 0.00
A10: 201 | B10: 03 | C10: 01 | D10: 行政运行（政府办公厅（室）及相关机构事务） | E10: 2,420,641.96 | F10: 2,420,641.96 | G10: 1,138,241.96 | H10: 1,282,400.00 | I10: 0.00 | J10: 0.00 | K10: 0.00 | L10: 0.00 | M10: 0.00 | N10: 0.00 | O10: 0.00 | P10: 0.00 | Q10: 0.00 | R10: 0.00 | S10: 0.00
A11: 201 | B11: 06 | D11: 财政事务 | E11: =E12 -> 169,040.40 | F11: 169,040.40 | G11: 169,040.40 | H11: 0.00 | I11: 0.00 | J11: 0.00 | K11: 0.00 | L11: 0.00 | M11: 0.00 | N11: 0.00 | O11: 0.00 | P11: 0.00 | Q11: 0.00 | R11: 0.00 | S11: 0.00
A12: 201 | B12: 06 | C12: 01 | D12: 行政运行（财政事务） | E12: 169,040.40 | F12: 169,040.40 | G12: 169,040.40 | H12: 0.00 | I12: 0.00 | J12: 0.00 | K12: 0.00 | L12: 0.00 | M12: 0.00 | N12: 0.00 | O12: 0.00 | P12: 0.00 | Q12: 0.00 | R12: 0.00 | S12: 0.00
A13: 208 | D13: 社会保障和就业支出 | E13: =E14 -> 68,999.91 | F13: 68,999.91 | G13: 68,999.91 | H13: 0.00 | I13: 0.00 | J13: 0.00 | K13: 0.00 | L13: 0.00 | M13: 0.00 | N13: 0.00 | O13: 0.00 | P13: 0.00 | Q13: 0.00 | R13: 0.00 | S13: 0.00
A14: 208 | B14: 01 | D14: 人力资源和社会保障管理事务 | E14: =E15 -> 68,999.91 | F14: 68,999.91 | G14: 68,999.91 | H14: 0.00 | I14: 0.00 | J14: 0.00 | K14: 0.00 | L14: 0.00 | M14: 0.00 | N14: 0.00 | O14: 0.00 | P14: 0.00 | Q14: 0.00 | R14: 0.00 | S14: 0.00
A15: 208 | B15: 01 | C15: 01 | D15: 行政运行（人力资源和社会保障管理事务） | E15: 68,999.91 | F15: 68,999.91 | G15: 68,999.91 | H15: 0.00 | I15: 0.00 | J15: 0.00 | K15: 0.00 | L15: 0.00 | M15: 0.00 | N15: 0.00 | O15: 0.00 | P15: 0.00 | Q15: 0.00 | R15: 0.00 | S15: 0.00
A16: 210 | D16: 卫生健康支出 | E16: =E17+E19 -> 289,868.04 | F16: 179,868.04 | G16: 179,868.04 | H16: 0.00 | I16: 0.00 | J16: 110,000.00 | K16: 110,000.00 | L16: 0.00 | M16: 0.00 | N16: 0.00 | O16: 0.00 | P16: 0.00 | Q16: 0.00 | R16: 0.00 | S16: 0.00
A17: 210 | B17: 01 | D17: 卫生健康管理事物 | E17: =E18 -> 179,868.04 | F17: 179,868.04 | G17: 179,868.04 | H17: 0.00 | I17: 0.00 | J17: 0.00 | K17: 0.00 | L17: 0.00 | M17: 0.00 | N17: 0.00 | O17: 0.00 | P17: 0.00 | Q17: 0.00 | R17: 0.00 | S17: 0.00
A18: 210 | B18: 01 | C18: 01 | D18: 行政运行（卫生健康管理事务） | E18: 179,868.04 | F18: 179,868.04 | G18: 179,868.04 | H18: 0.00 | I18: 0.00 | J18: 0.00 | K18: 0.00 | L18: 0.00 | M18: 0.00 | N18: 0.00 | O18: 0.00 | P18: 0.00 | Q18: 0.00 | R18: 0.00 | S18: 0.00
A19: 210 | B19: 07 | D19: 计划生育事务 | E19: =SUM(E20:E21) -> 110,000.00 | F19: 0.00 | G19: 0.00 | H19: 0.00 | I19: 0.00 | J19: 110,000.00 | K19: 110,000.00 | L19: 0.00 | M19: 0.00 | N19: 0.00 | O19: 0.00 | P19: 0.00 | Q19: 0.00 | R19: 0.00 | S19: 0.00
A20: 210 | B20: 07 | C20: 16 | D20: 计划生育机构 | E20: 31,000.00 | F20: 0.00 | G20: 0.00 | H20: 0.00 | I20: 0.00 | J20: 31,000.00 | K20: 31,000.00 | L20: 0.00 | M20: 0.00 | N20: 0.00 | O20: 0.00 | P20: 0.00 | Q20: 0.00 | R20: 0.00 | S20: 0.00
A21: 210 | B21: 07 | C21: 99 | D21: 其他计划生育事务支出 | E21: 79,000.00 | F21: 0.00 | G21: 0.00 | H21: 0.00 | I21: 0.00 | J21: 79,000.00 | K21: 79,000.00 | L21: 0.00 | M21: 0.00 | N21: 0.00 | O21: 0.00 | P21: 0.00 | Q21: 0.00 | R21: 0.00 | S21: 0.00
A22: 213 | D22: 农林水支出 | E22: =E23+E28+E30 -> 2,816,537.41 | F22: 717,137.41 | G22: 717,137.41 | H22: 0.00 | I22: 0.00 | J22: 2,099,400.00 | K22: 2,099,400.00 | L22: 0.00 | M22: 0.00 | N22: 0.00 | O22: 0.00 | P22: 0.00 | Q22: 0.00 | R22: 0.00 | S22: 0.00
A23: 213 | B23: 01 | D23: 农业农村 | E23: =SUM(E24:E27) -> 528,722.14 | F23: 528,722.14 | G23: 528,722.14 | H23: 0.00 | I23: 0.00 | J23: 0.00 | K23: 0.00 | L23: 0.00 | M23: 0.00 | N23: 0.00 | O23: 0.00 | P23: 0.00 | Q23: 0.00 | R23: 0.00 | S23: 0.00
A24: 213 | B24: 01 | C24: 01 | D24: 行政运行（农业） | E24: 260,968.40 | F24: 260,968.40 | G24: 260,968.40 | H24: 0.00 | I24: 0.00 | J24: 0.00 | K24: 0.00 | L24: 0.00 | M24: 0.00 | N24: 0.00 | O24: 0.00 | P24: 0.00 | Q24: 0.00 | R24: 0.00 | S24: 0.00
A25: 213 | B25: 01 | C25: 01 | D25: 行政运行（农业） | E25: 62,147.47 | F25: 62,147.47 | G25: 62,147.47 | H25: 0.00 | I25: 0.00 | J25: 0.00 | K25: 0.00 | L25: 0.00 | M25: 0.00 | N25: 0.00 | O25: 0.00 | P25: 0.00 | Q25: 0.00 | R25: 0.00 | S25: 0.00
A26: 213 | B26: 01 | C26: 01 | D26: 行政运行（农业） | E26: 61,704.67 | F26: 61,704.67 | G26: 61,704.67 | H26: 0.00 | I26: 0.00 | J26: 0.00 | K26: 0.00 | L26: 0.00 | M26: 0.00 | N26: 0.00 | O26: 0.00 | P26: 0.00 | Q26: 0.00 | R26: 0.00 | S26: 0.00
A27: 213 | B27: 01 | C27: 01 | D27: 行政运行（农业） | E27: 143,901.60 | F27: 143,901.60 | G27: 143,901.60 | H27: 0.00 | I27: 0.00 | J27: 0.00 | K27: 0.00 | L27: 0.00 | M27: 0.00 | N27: 0.00 | O27: 0.00 | P27: 0.00 | Q27: 0.00 | R27: 0.00 | S27: 0.00
A28: 213 | B28: 02 | D28: 林业 | E28: =E29 -> 188,415.27 | F28: 188,415.27 | G28: 188,415.27 | H28: 0.00 | I28: 0.00 | J28: 0.00 | K28: 0.00 | L28: 0.00 | M28: 0.00 | N28: 0.00 | O28: 0.00 | P28: 0.00 | Q28: 0.00 | R28: 0.00 | S28: 0.00
A29: 213 | B29: 02 | C29: 01 | D29: 行政运行（林业） | E29: 188,415.27 | F29: 188,415.27 | G29: 188,415.27 | H29: 0.00 | I29: 0.00 | J29: 0.00 | K29: 0.00 | L29: 0.00 | M29: 0.00 | N29: 0.00 | O29: 0.00 | P29: 0.00 | Q29: 0.00 | R29: 0.00 | S29: 0.00
A30: 213 | B30: 07 | D30: 农村综合改革 | E30: =E31 -> 2,099,400.00 | F30: 0.00 | G30: 0.00 | H30: 0.00 | I30: 0.00 | J30: 2,099,400.00 | K30: 2,099,400.00 | L30: 0.00 | M30: 0.00 | N30: 0.00 | O30: 0.00 | P30: 0.00 | Q30: 0.00 | R30: 0.00 | S30: 0.00
A31: 213 | B31: 07 | C31: 05 | D31: 对村民委员会和村党支部的补助 | E31: 2,099,400.00 | F31: 0.00 | G31: 0.00 | H31: 0.00 | I31: 0.00 | J31: 2,099,400.00 | K31: 2,099,400.00 | L31: 0.00 | M31: 0.00 | N31: 0.00 | O31: 0.00 | P31: 0.00 | Q31: 0.00 | R31: 0.00 | S31: 0.00
A32: 220 | D32: 自然资源海洋气象等支出 | E32: =E33 -> 244,562.65 | F32: 244,562.65 | G32: 244,562.65 | H32: 0.00 | I32: 0.00 | J32: 0.00 | K32: 0.00 | L32: 0.00 | M32: 0.00 | N32: 0.00 | O32: 0.00 | P32: 0.00 | Q32: 0.00 | R32: 0.00 | S32: 0.00
A33: 220 | B33: 01 | D33: 自然资源事务 | E33: =SUM(E34:E35) -> 244,562.65 | F33: 244,562.65 | G33: 244,562.65 | H33: 0.00 | I33: 0.00 | J33: 0.00 | K33: 0.00 | L33: 0.00 | M33: 0.00 | N33: 0.00 | O33: 0.00 | P33: 0.00 | Q33: 0.00 | R33: 0.00 | S33: 0.00
A34: 220 | B34: 01 | C34: 01 | D34: 行政运行（自然资源事务） | E34: 134,450.96 | F34: 134,450.96 | G34: 134,450.96 | H34: 0.00 | I34: 0.00 | J34: 0.00 | K34: 0.00 | L34: 0.00 | M34: 0.00 | N34: 0.00 | O34: 0.00 | P34: 0.00 | Q34: 0.00 | R34: 0.00 | S34: 0.00
A35: 220 | B35: 01 | C35: 04 | D35: 国土资源规划及管理 | E35: 110,111.69 | F35: 110,111.69 | G35: 110,111.69 | H35: 0.00 | I35: 0.00 | J35: 0.00 | K35: 0.00 | L35: 0.00 | M35: 0.00 | N35: 0.00 | O35: 0.00 | P35: 0.00 | Q35: 0.00 | R35: 0.00 | S35: 0.00
A36: 224 | D36: 灾害防治及应急管理支出 | E36: =E37 -> 283,523.09 | F36: 283,523.09 | G36: 283,523.09 | H36: 0.00 | I36: 0.00 | J36: 0.00 | K36: 0.00 | L36: 0.00 | M36: 0.00 | N36: 0.00 | O36: 0.00 | P36: 0.00 | Q36: 0.00 | R36: 0.00 | S36: 0.00
A37: 224 | B37: 01 | D37: 应急管理事物 | E37: =E38 -> 283,523.09 | F37: 283,523.09 | G37: 283,523.09 | H37: 0.00 | I37: 0.00 | J37: 0.00 | K37: 0.00 | L37: 0.00 | M37: 0.00 | N37: 0.00 | O37: 0.00 | P37: 0.00 | Q37: 0.00 | R37: 0.00 | S37: 0.00
A38: 224 | B38: 01 | C38: 06 | D38: 安全监管 | E38: 283,523.09 | F38: 283,523.09 | G38: 283,523.09 | H38: 0.00 | I38: 0.00 | J38: 0.00 | K38: 0.00 | L38: 0.00 | M38: 0.00 | N38: 0.00 | O38: 0.00 | P38: 0.00 | Q38: 0.00 | R38: 0.00 | S38: 0.00

Sheet 5丶支出预算（政府预算）
A1: 附件5：
A2: 部门支出总表(按政府预算经济分类)
A3: 单位名称：洗马乡财政所 | Q3: 单位：元
A4: 功能科目 | D4: 功能科目名称 | E4: 总 计 | F4: 机关工资福利支出 | G4: 机关商品和服务支出 | H4: 机关资本性支出(一) | I4: 机关资本性支出(二) | J4: 对事业单位经常性补助 | K4: 对事业单位资本性补助 | L4: 对企业补助 | M4: 对企业资本性支出 | N4: 对个人和家庭的补助 | O4: 对社会保障基金补助 | P4: 债务利息及费用支出 | Q4: 其他支出
A5: 类 | B5: 款 | C5: 项
D7: 合计 | E7: =E8+E13+E16+E22+E32+E36 -> 6,293,173.46 | F7: 1,307,282.36 | G7: 3,381,800.00 | H7: 0.00 | I7: 0.00 | J7: 1,604,091.10 | K7: 0.00 | L7: 0.00 | M7: 0.00 | N7: 0.00 | O7: 0.00 | P7: 0.00 | Q7: 0.00
A8: 201 | D8: 一般公共服务支出 | E8: =E9+E11 -> 2,589,682.36 | F8: 1,307,282.36 | G8: 1,282,400.00 | H8: 0.00 | I8: 0.00 | J8: 0.00 | K8: 0.00 | L8: 0.00 | M8: 0.00 | N8: 0.00 | O8: 0.00 | P8: 0.00 | Q8: 0.00
A9: 201 | B9: 03 | D9: 政府办公厅（室）及相关机构事务 | E9: =E10 -> 2,420,641.96 | F9: 1,138,241.96 | G9: 1,282,400.00 | H9: 0.00 | I9: 0.00 | J9: 0.00 | K9: 0.00 | L9: 0.00 | M9: 0.00 | N9: 0.00 | O9: 0.00 | P9: 0.00 | Q9: 0.00
A10: 201 | B10: 03 | C10: 01 | D10: 行政运行（政府办公厅（室）及相关机构事务） | E10: 2,420,641.96 | F10: 1,138,241.96 | G10: 1,282,400.00 | H10: 0.00 | I10: 0.00 | J10: 0.00 | K10: 0.00 | L10: 0.00 | M10: 0.00 | N10: 0.00 | O10: 0.00 | P10: 0.00 | Q10: 0.00
A11: 201 | B11: 06 | D11: 财政事务 | E11: =E12 -> 169,040.40 | F11: 169,040.40 | G11: 0.00 | H11: 0.00 | I11: 0.00 | J11: 0.00 | K11: 0.00 | L11: 0.00 | M11: 0.00 | N11: 0.00 | O11: 0.00 | P11: 0.00 | Q11: 0.00
A12: 201 | B12: 06 | C12: 01 | D12: 行政运行（财政事务） | E12: 169,040.40 | F12: 169,040.40 | G12: 0.00 | H12: 0.00 | I12: 0.00 | J12: 0.00 | K12: 0.00 | L12: 0.00 | M12: 0.00 | N12: 0.00 | O12: 0.00 | P12: 0.00 | Q12: 0.00
A13: 208 | D13: 社会保障和就业支出 | E13: =E14 -> 68,999.91 | F13: 0.00 | G13: 0.00 | H13: 0.00 | I13: 0.00 | J13: 68,999.91 | K13: 0.00 | L13: 0.00 | M13: 0.00 | N13: 0.00 | O13: 0.00 | P13: 0.00 | Q13: 0.00
A14: 208 | B14: 01 | D14: 人力资源和社会保障管理事务 | E14: =E15 -> 68,999.91 | F14: 0.00 | G14: 0.00 | H14: 0.00 | I14: 0.00 | J14: 68,999.91 | K14: 0.00 | L14: 0.00 | M14: 0.00 | N14: 0.00 | O14: 0.00 | P14: 0.00 | Q14: 0.00
A15: 208 | B15: 01 | C15: 01 | D15: 行政运行（人力资源和社会保障管理事务） | E15: 68,999.91 | F15: 0.00 | G15: 0.00 | H15: 0.00 | I15: 0.00 | J15: 68,999.91 | K15: 0.00 | L15: 0.00 | M15: 0.00 | N15: 0.00 | O15: 0.00 | P15: 0.00 | Q15: 0.00
A16: 210 | D16: 卫生健康支出 | E16: =E17+E19 -> 289,868.04 | F16: 0.00 | G16: 0.00 | H16: 0.00 | I16: 0.00 | J16: 289,868.04 | K16: 0.00 | L16: 0.00 | M16: 0.00 | N16: 0.00 | O16: 0.00 | P16: 0.00 | Q16: 0.00
A17: 210 | B17: 01 | D17: 卫生健康管理事物 | E17: =E18 -> 179,868.04 | F17: 0.00 | G17: 0.00 | H17: 0.00 | I17: 0.00 | J17: 179,868.04 | K17: 0.00 | L17: 0.00 | M17: 0.00 | N17: 0.00 | O17: 0.00 | P17: 0.00 | Q17: 0.00
A18: 210 | B18: 01 | C18: 01 | D18: 行政运行（卫生健康管理事务） | E18: 179,868.04 | F18: 0.00 | G18: 0.00 | H18: 0.00 | I18: 0.00 | J18: 179,868.04 | K18: 0.00 | L18: 0.00 | M18: 0.00 | N18: 0.00 | O18: 0.00 | P18: 0.00 | Q18: 0.00
A19: 210 | B19: 07 | D19: 计划生育事务 | E19: =SUM(E20:E21) -> 110,000.00 | F19: 0.00 | G19: 0.00 | H19: 0.00 | I19: 0.00 | J19: 110,000.00 | K19: 0.00 | L19: 0.00 | M19: 0.00 | N19: 0.00 | O19: 0.00 | P19: 0.00 | Q19: 0.00
A20: 210 | B20: 07 | C20: 16 | D20: 计划生育机构 | E20: 31,000.00 | F20: 0.00 | G20: 0.00 | H20: 0.00 | I20: 0.00 | J20: 31,000.00 | K20: 0.00 | L20: 0.00 | M20: 0.00 | N20: 0.00 | O20: 0.00 | P20: 0.00 | Q20: 0.00
A21: 210 | B21: 07 | C21: 99 | D21: 其他计划生育事务支出 | E21: 79,000.00 | F21: 0.00 | G21: 0.00 | H21: 0.00 | I21: 0.00 | J21: 79,000.00 | K21: 0.00 | L21: 0.00 | M21: 0.00 | N21: 0.00 | O21: 0.00 | P21: 0.00 | Q21: 0.00
A22: 213 | D22: 农林水支出 | E22: =E23+E28+E30 -> 2,816,537.41 | F22: 0.00 | G22: 2,099,400.00 | H22: 0.00 | I22: 0.00 | J22: 717,137.41 | K22: 0.00 | L22: 0.00 | M22: 0.00 | N22: 0.00 | O22: 0.00 | P22: 0.00 | Q22: 0.00
A23: 213 | B23: 01 | D23: 农业农村 | E23: =SUM(E24:E27) -> 528,722.14 | F23: 0.00 | G23: 0.00 | H23: 0.00 | I23: 0.00 | J23: 528,722.14 | K23: 0.00 | L23: 0.00 | M23: 0.00 | N23: 0.00 | O23: 0.00 | P23: 0.00 | Q23: 0.00
A24: 213 | B24: 01 | C24: 01 | D24: 行政运行（农业） | E24: 143,901.60 | F24: 0.00 | G24: 0.00 | H24: 0.00 | I24: 0.00 | J24: 143,901.60 | K24: 0.00 | L24: 0.00 | M24: 0.00 | N24: 0.00 | O24: 0.00 | P24: 0.00 | Q24: 0.00
A25: 213 | B25: 01 | C25: 01 | D25: 行政运行（农业） | E25: 62,147.47 | F25: 0.00 | G25: 0.00 | H25: 0.00 | I25: 0.00 | J25: 62,147.47 | K25: 0.00 | L25: 0.00 | M25: 0.00 | N25: 0.00 | O25: 0.00 | P25: 0.00 | Q25: 0.00
A26: 213 | B26: 01 | C26: 01 | D26: 行政运行（农业） | E26: 61,704.67 | F26: 0.00 | G26: 0.00 | H26: 0.00 | I26: 0.00 | J26: 61,704.67 | K26: 0.00 | L26: 0.00 | M26: 0.00 | N26: 0.00 | O26: 0.00 | P26: 0.00 | Q26: 0.00
A27: 213 | B27: 01 | C27: 01 | D27: 行政运行（农业） | E27: 260,968.40 | F27: 0.00 | G27: 0.00 | H27: 0.00 | I27: 0.00 | J27: 260,968.40 | K27: 0.00 | L27: 0.00 | M27: 0.00 | N27: 0.00 | O27: 0.00 | P27: 0.00 | Q27: 0.00
A28: 213 | B28: 02 | D28: 林业 | E28: =E29 -> 188,415.27 | F28: 0.00 | G28: 0.00 | H28: 0.00 | I28: 0.00 | J28: 188,415.27 | K28: 0.00 | L28: 0.00 | M28: 0.00 | N28: 0.00 | O28: 0.00 | P28: 0.00 | Q28: 0.00
A29: 213 | B29: 02 | C29: 01 | D29: 行政运行（林业） | E29: 188,415.27 | F29: 0.00 | G29: 0.00 | H29: 0.00 | I29: 0.00 | J29: 188,415.27 | K29: 0.00 | L29: 0.00 | M29: 0.00 | N29: 0.00 | O29: 0.00 | P29: 0.00 | Q29: 0.00
A30: 213 | B30: 07 | D30: 农村综合改革 | E30: =E31 -> 2,099,400.00 | F30: 0.00 | G30: 2,099,400.00 | H30: 0.00 | I30: 0.00 | J30: 0.00 | K30: 0.00 | L30: 0.00 | M30: 0.00 | N30: 0.00 | O30: 0.00 | P30: 0.00 | Q30: 0.00
A31: 213 | B31: 07 | C31: 05 | D31: 对村民委员会和村党支部的补助 | E31: 2,099,400.00 | F31: 0.00 | G31: 2,099,400.00 | H31: 0.00 | I31: 0.00 | J31: 0.00 | K31: 0.00 | L31: 0.00 | M31: 0.00 | N31: 0.00 | O31: 0.00 | P31: 0.00 | Q31: 0.00
A32: 220 | D32: 自然资源海洋气象等支出 | E32: =E33 -> 244,562.65 | F32: 0.00 | G32: 0.00 | H32: 0.00 | I32: 0.00 | J32: 244,562.65 | K32: 0.00 | L32: 0.00 | M32: 0.00 | N32: 0.00 | O32: 0.00 | P32: 0.00 | Q32: 0.00
A33: 220 | B33: 01 | D33: 自然资源事务 | E33: =SUM(E34:E35) -> 244,562.65 | F33: 0.00 | G33: 0.00 | H33: 0.00 | I33: 0.00 | J33: 244,562.65 | K33: 0.00 | L33: 0.00 | M33: 0.00 | N33: 0.00 | O33: 0.00 | P33: 0.00 | Q33: 0.00
A34: 220 | B34: 01 | C34: 01 | D34: 行政运行（自然资源事务） | E34: 134,450.96 | F34: 0.00 | G34: 0.00 | H34: 0.00 | I34: 0.00 | J34: 134,450.96 | K34: 0.00 | L34: 0.00 | M34: 0.00 | N34: 0.00 | O34: 0.00 | P34: 0.00 | Q34: 0.00
A35: 220 | B35: 01 | C35: 04 | D35: 国土资源规划及管理 | E35: 110,111.69 | F35: 0.00 | G35: 0.00 | H35: 0.00 | I35: 0.00 | J35: 110,111.69 | K35: 0.00 | L35: 0.00 | M35: 0.00 | N35: 0.00 | O35: 0.00 | P35: 0.00 | Q35: 0.00
A36: 224 | D36: 灾害防治及应急管理支出 | E36: =E37 -> 283,523.09 | F36: 0.00 | G36: 0.00 | H36: 0.00 | I36: 0.00 | J36: 283,523.09 | K36: 0.00 | L36: 0.00 | M36: 0.00 | N36: 0.00 | O36: 0.00 | P36: 0.00 | Q36: 0.00
A37: 224 | B37: 01 | D37: 应急管理事物 | E37: =E38 -> 283,523.09 | F37: 0.00 | G37: 0.00 | H37: 0.00 | I37: 0.00 | J37: 283,523.09 | K37: 0.00 | L37: 0.00 | M37: 0.00 | N37: 0.00 | O37: 0.00 | P37: 0.00 | Q37: 0.00
A38: 224 | B38: 01 | C38: 06 | D38: 安全监管 | E38: 283,523.09 | F38: 0.00 | G38: 0.00 | H38: 0.00 | I38: 0.00 | J38: 283,523.09 | K38: 0.00 | L38: 0.00 | M38: 0.00 | N38: 0.00 | O38: 0.00 | P38: 0.00 | Q38: 0.00

Sheet 6丶基本-工资福利
A1: 附件6：
A2: 基本支出预算明细表-工资福利支出(按部门预算经济分类)
A3: 单位名称：洗马乡财政所 | T3: 单位：元
A4: 功能科目 | D4: 科目名称 | E4: 总 计 | F4: 工资津补贴 | K4: 社会保障缴费 | Q4: 住房公积金 | R4: 其他工资福利支出
A5: 类 | B5: 款 | C5: 项 | F5: 合计 | G5: 基本工资 | H5: 津贴补贴 | I5: 奖金 | J5: 绩效工资 | K5: 合计 | L5: 机关事业单位基本养老保险缴费 | M5: 职业年金缴费 | N5: 职工基本医疗保险缴费 | O5: 公务员医疗补助缴费 | P5: 其他社会保障缴费 | R5: 合计 | S5: 伙食补助费 | T5: 医疗费 | U5: 其他工资福利支出
D6: 合计 | E6: =E7+E12+E15+E18+E23+E27 -> 2,801,373.46 | F6: 2,270,484.00 | G6: 1,323,108.00 | H6: 947,376.00 | I6: 0.00 | J6: 0.00 | K6: 451,502.98 | L6: 211,697.28 | M6: 104,848.64 | N6: 105,848.64 | O6: 0.00 | P6: 29,108.42 | Q6: 79,386.48 | R6: 0.00 | S6: 0.00 | T6: 0.00 | U6: 0.00
A7: 201 | D7: 一般公共服务支出 | E7: =E8+E10 -> 1,307,282.36 | F7: 1,061,268.00 | G7: 611,976.00 | H7: 449,292.00 | I7: 0.00 | J7: 0.00 | K7: 209,295.80 | L7: 97,916.16 | M7: 48,958.08 | N7: 48,958.08 | O7: 0.00 | P7: 13,463.48 | Q7: 36,718.56 | R7: 0.00 | S7: 0.00 | T7: 0.00 | U7: 0.00
A8: 201 | B8: 03 | D8: 政府办公厅（室）及相关机构事务 | E8: =E9 -> 1,138,241.96 | F8: 922,860.00 | G8: 535,776.00 | H8: 387,084.00 | I8: 0.00 | J8: 0.00 | K8: 183,235.40 | L8: 85,724.16 | M8: 42,862.08 | N8: 42,862.08 | O8: 0.00 | P8: 11,787.08 | Q8: 32,146.56 | R8: 0.00 | S8: 0.00 | T8: 0.00 | U8: 0.00
A9: 201 | B9: 03 | C9: 01 | D9: 行政运行（政府办公厅（室）及相关机构事务） | E9: 1,138,241.96 | F9: 922,860.00 | G9: 535,776.00 | H9: 387,084.00 | I9: 0.00 | J9: 0.00 | K9: 183,235.40 | L9: 85,724.16 | M9: 42,862.08 | N9: 42,862.08 | O9: 0.00 | P9: 11,787.08 | Q9: 32,146.56 | R9: 0.00 | S9: 0.00 | T9: 0.00 | U9: 0.00
A10: 201 | B10: 06 | D10: 财政事务 | E10: =E11 -> 169,040.40 | F10: 138,408.00 | G10: 76,200.00 | H10: 62,208.00 | I10: 0.00 | J10: 0.00 | K10: 26,060.40 | L10: 12,192.00 | M10: 6,096.00 | N10: 6,096.00 | O10: 0.00 | P10: 1,676.40 | Q10: 4,572.00 | R10: 0.00 | S10: 0.00 | T10: 0.00 | U10: 0.00
A11: 201 | B11: 06 | C11: 01 | D11: 行政运行（财政事务） | E11: 169,040.40 | F11: 138,408.00 | G11: 76,200.00 | H11: 62,208.00 | I11: 0.00 | J11: 0.00 | K11: 26,060.40 | L11: 12,192.00 | M11: 6,096.00 | N11: 6,096.00 | O11: 0.00 | P11: 1,676.40 | Q11: 4,572.00 | R11: 0.00 | S11: 0.00 | T11: 0.00 | U11: 0.00
A12: 208 | D12: 社会保障和就业支出 | E12: =E13 -> 68,999.91 | F12: 55,512.00 | G12: 33,552.00 | H12: 21,960.00 | I12: 0.00 | J12: 0.00 | K12: 11,474.79 | L12: 5,368.32 | M12: 2,684.16 | N12: 2,684.16 | O12: 0.00 | P12: 738.15 | Q12: 2,013.12 | R12: 0.00 | S12: 0.00 | T12: 0.00 | U12: 0.00
A13: 208 | B13: 01 | D13: 人力资源和社会保障管理事务 | E13: =E14 -> 68,999.91 | F13: 55,512.00 | G13: 33,552.00 | H13: 21,960.00 | I13: 0.00 | J13: 0.00 | K13: 11,474.79 | L13: 5,368.32 | M13: 2,684.16 | N13: 2,684.16 | O13: 0.00 | P13: 738.15 | Q13: 2,013.12 | R13: 0.00 | S13: 0.00 | T13: 0.00 | U13: 0.00
A14: 208 | B14: 01 | C14: 01 | D14: 行政运行（人力资源和社会保障管理事务） | E14: 68,999.91 | F14: 55,512.00 | G14: 33,552.00 | H14: 21,960.00 | I14: 0.00 | J14: 0.00 | K14: 11,474.79 | L14: 5,368.32 | M14: 2,684.16 | N14: 2,684.16 | O14: 0.00 | P14: 738.15 | Q14: 2,013.12 | R14: 0.00 | S14: 0.00 | T14: 0.00 | U14: 0.00
A15: 210 | D15: 卫生健康支出 | E15: =E16 -> 179,868.04 | F15: 146,772.00 | G15: 84,816.00 | H15: 61,956.00 | I15: 0.00 | J15: 0.00 | K15: 28,007.08 | L15: 13,570.56 | M15: 5,785.28 | N15: 6,785.28 | O15: 0.00 | P15: 1,865.96 | Q15: 5,088.96 | R15: 0.00 | S15: 0.00 | T15: 0.00 | U15: 0.00
A16: 210 | B16: 01 | D16: 卫生健康管理事物 | E16: =E17 -> 179,868.04 | F16: 146,772.00 | G16: 84,816.00 | H16: 61,956.00 | I16: 0.00 | J16: 0.00 | K16: 28,007.08 | L16: 13,570.56 | M16: 5,785.28 | N16: 6,785.28 | O16: 0.00 | P16: 1,865.96 | Q16: 5,088.96 | R16: 0.00 | S16: 0.00 | T16: 0.00 | U16: 0.00
A17: 210 | B17: 01 | C17: 01 | D17: 行政运行（卫生健康管理事务） | E17: 179,868.04 | F17: 146,772.00 | G17: 84,816.00 | H17: 61,956.00 | I17: 0.00 | J17: 0.00 | K17: 28,007.08 | L17: 13,570.56 | M17: 5,785.28 | N17: 6,785.28 | O17: 0.00 | P17: 1,865.96 | Q17: 5,088.96 | R17: 0.00 | S17: 0.00 | T17: 0.00 | U17: 0.00
A18: 213 | D18: 农林水支出 | E18: =E19+E21 -> 717,137.41 | F18: 578,568.00 | G18: 344,700.00 | H18: 233,868.00 | I18: 0.00 | J18: 0.00 | K18: 117,887.41 | L18: 55,152.00 | M18: 27,576.00 | N18: 27,576.00 | O18: 0.00 | P18: 7,583.41 | Q18: 20,682.00 | R18: 0.00 | S18: 0.00 | T18: 0.00 | U18: 0.00
A19: 213 | B19: 01 | D19: 农业农村 | E19: =E20 -> 528,722.14 | F19: 426,024.00 | G19: 255,468.00 | H19: 170,556.00 | I19: 0.00 | J19: 0.00 | K19: 87,370.06 | L19: 40,874.88 | M19: 20,437.44 | N19: 20,437.44 | O19: 0.00 | P19: 5,620.30 | Q19: 15,328.08 | R19: 0.00 | S19: 0.00 | T19: 0.00 | U19: 0.00
A20: 213 | B20: 01 | C20: 01 | D20: 行政运行（农业） | E20: 528,722.14 | F20: 426,024.00 | G20: 255,468.00 | H20: 170,556.00 | I20: 0.00 | J20: 0.00 | K20: 87,370.06 | L20: 40,874.88 | M20: 20,437.44 | N20: 20,437.44 | O20: 0.00 | P20: 5,620.30 | Q20: 15,328.08 | R20: 0.00 | S20: 0.00 | T20: 0.00 | U20: 0.00
A21: 213 | B21: 02 | D21: 林业 | E21: =E22 -> 188,415.27 | F21: 152,544.00 | G21: 89,232.00 | H21: 63,312.00 | I21: 0.00 | J21: 0.00 | K21: 30,517.35 | L21: 14,277.12 | M21: 7,138.56 | N21: 7,138.56 | O21: 0.00 | P21: 1,963.11 | Q21: 5,353.92 | R21: 0.00 | S21: 0.00 | T21: 0.00 | U21: 0.00
A22: 213 | B22: 02 | C22: 01 | D22: 行政运行（林业） | E22: 188,415.27 | F22: 152,544.00 | G22: 89,232.00 | H22: 63,312.00 | I22: 0.00 | J22: 0.00 | K22: 30,517.35 | L22: 14,277.12 | M22: 7,138.56 | N22: 7,138.56 | O22: 0.00 | P22: 1,963.11 | Q22: 5,353.92 | R22: 0.00 | S22: 0.00 | T22: 0.00 | U22: 0.00
A23: 220 | D23: 自然资源海洋气象等支出 | E23: =E24 -> 244,562.65 | F23: 198,204.00 | G23: 115,320.00 | H23: 82,884.00 | I23: 0.00 | J23: 0.00 | K23: 39,439.45 | L23: 18,451.20 | M23: 9,225.60 | N23: 9,225.60 | O23: 0.00 | P23: 2,537.05 | Q23: 6,919.20 | R23: 0.00 | S23: 0.00 | T23: 0.00 | U23: 0.00
A24: 220 | B24: 01 | D24: 自然资源事务 | E24: =SUM(E25:E26) -> 244,562.65 | F24: 198,204.00 | G24: 115,320.00 | H24: 82,884.00 | I24: 0.00 | J24: 0.00 | K24: 39,439.45 | L24: 18,451.20 | M24: 9,225.60 | N24: 9,225.60 | O24: 0.00 | P24: 2,537.05 | Q24: 6,919.20 | R24: 0.00 | S24: 0.00 | T24: 0.00 | U24: 0.00
A25: 220 | B25: 01 | C25: 01 | D25: 行政运行（自然资源事务） | E25: 134,450.96 | F25: 107,808.00 | G25: 66,276.00 | H25: 41,532.00 | I25: 0.00 | J25: 0.00 | K25: 22,666.40 | L25: 10,604.16 | M25: 5,302.08 | N25: 5,302.08 | O25: 0.00 | P25: 1,458.08 | Q25: 3,976.56 | R25: 0.00 | S25: 0.00 | T25: 0.00 | U25: 0.00
A26: 220 | B26: 01 | C26: 04 | D26: 国土资源规划及管理 | E26: 110,111.69 | F26: 90,396.00 | G26: 49,044.00 | H26: 41,352.00 | I26: 0.00 | J26: 0.00 | K26: 16,773.05 | L26: 7,847.04 | M26: 3,923.52 | N26: 3,923.52 | O26: 0.00 | P26: 1,078.97 | Q26: 2,942.64 | R26: 0.00 | S26: 0.00 | T26: 0.00 | U26: 0.00
A27: 224 | D27: 灾害防治及应急管理支出 | E27: =E28 -> 283,523.09 | F27: 230,160.00 | G27: 132,744.00 | H27: 97,416.00 | I27: 0.00 | J27: 0.00 | K27: 45,398.45 | L27: 21,239.04 | M27: 10,619.52 | N27: 10,619.52 | O27: 0.00 | P27: 2,920.37 | Q27: 7,964.64 | R27: 0.00 | S27: 0.00 | T27: 0.00 | U27: 0.00
A28: 224 | B28: 01 | D28: 应急管理事物 | E28: =E29 -> 283,523.09 | F28: 230,160.00 | G28: 132,744.00 | H28: 97,416.00 | I28: 0.00 | J28: 0.00 | K28: 45,398.45 | L28: 21,239.04 | M28: 10,619.52 | N28: 10,619.52 | O28: 0.00 | P28: 2,920.37 | Q28: 7,964.64 | R28: 0.00 | S28: 0.00 | T28: 0.00 | U28: 0.00
A29: 224 | B29: 01 | C29: 06 | D29: 安全监管 | E29: 283,523.09 | F29: 230,160.00 | G29: 132,744.00 | H29: 97,416.00 | I29: 0.00 | J29: 0.00 | K29: 45,398.45 | L29: 21,239.04 | M29: 10,619.52 | N29: 10,619.52 | O29: 0.00 | P29: 2,920.37 | Q29: 7,964.64 | R29: 0.00 | S29: 0.00 | T29: 0.00 | U29: 0.00

Sheet 7丶工资福利（政府预算）
A1: 附件7：
A2: 基本支出预算明细表-工资福利支出(按政府预算经济分类)
A3: 单位名称：洗马乡财政所 | L3: 单位：元
A4: 功能科目 | D4: 功能科目名称 | E4: 总 计 | F4: 机关工资福利支出 | K4: 对事业单位经常性补助
A5: 类 | B5: 款 | C5: 项 | F5: 合计 | G5: 工资奖金津补贴 | H5: 社会保障缴费 | I5: 住房公积金 | J5: 其他工资福利支出 | K5: 合计 | L5: 工资福利支出 | M5: 其他对事业单位补助
D6: 合计 | E6: =E7+E12+E15+E18+E23+E27 -> 2,801,373.46 | F6: 1,307,282.36 | G6: 1,061,268.00 | H6: 209,295.80 | I6: 36,718.56 | J6: 0.00 | K6: 1,494,091.10 | L6: 1,494,091.10 | M6: 0.00
A7: 201 | D7: 一般公共服务支出 | E7: =E8+E10 -> 1,307,282.36 | F7: 1,307,282.36 | G7: 1,061,268.00 | H7: 209,295.80 | I7: 36,718.56 | J7: 0.00 | K7: 0.00 | L7: 0.00 | M7: 0.00
A8: 201 | B8: 03 | D8: 政府办公厅（室）及相关机构事务 | E8: =E9 -> 1,138,241.96 | F8: 1,138,241.96 | G8: 922,860.00 | H8: 183,235.40 | I8: 32,146.56 | J8: 0.00 | K8: 0.00 | L8: 0.00 | M8: 0.00
A9: 201 | B9: 03 | C9: 01 | D9: 行政运行（政府办公厅（室）及相关机构事务） | E9: 1,138,241.96 | F9: 1,138,241.96 | G9: 922,860.00 | H9: 183,235.40 | I9: 32,146.56 | J9: 0.00 | K9: 0.00 | L9: 0.00 | M9: 0.00
A10: 201 | B10: 06 | D10: 财政事务 | E10: =E11 -> 169,040.40 | F10: 169,040.40 | G10: 138,408.00 | H10: 26,060.40 | I10: 4,572.00 | J10: 0.00 | K10: 0.00 | L10: 0.00 | M10: 0.00
A11: 201 | B11: 06 | C11: 01 | D11: 行政运行（财政事务） | E11: 169,040.40 | F11: 169,040.40 | G11: 138,408.00 | H11: 26,060.40 | I11: 4,572.00 | J11: 0.00 | K11: 0.00 | L11: 0.00 | M11: 0.00
A12: 208 | D12: 社会保障和就业支出 | E12: =E13 -> 68,999.91 | F12: 0.00 | G12: 0.00 | H12: 0.00 | I12: 0.00 | J12: 0.00 | K12: 68,999.91 | L12: 68,999.91 | M12: 0.00
A13: 208 | B13: 01 | D13: 人力资源和社会保障管理事务 | E13: =E14 -> 68,999.91 | F13: 0.00 | G13: 0.00 | H13: 0.00 | I13: 0.00 | J13: 0.00 | K13: 68,999.91 | L13: 68,999.91 | M13: 0.00
A14: 208 | B14: 01 | C14: 01 | D14: 行政运行（人力资源和社会保障管理事务） | E14: 68,999.91 | F14: 0.00 | G14: 0.00 | H14: 0.00 | I14: 0.00 | J14: 0.00 | K14: 68,999.91 | L14: 68,999.91 | M14: 0.00
A15: 210 | D15: 卫生健康支出 | E15: =E16 -> 179,868.04 | F15: 0.00 | G15: 0.00 | H15: 0.00 | I15: 0.00 | J15: 0.00 | K15: 179,868.04 | L15: 179,868.04 | M15: 0.00
A16: 210 | B16: 01 | D16: 卫生健康管理事物 | E16: =E17 -> 179,868.04 | F16: 0.00 | G16: 0.00 | H16: 0.00 | I16: 0.00 | J16: 0.00 | K16: 179,868.04 | L16: 179,868.04 | M16: 0.00
A17: 210 | B17: 01 | C17: 01 | D17: 行政运行（卫生健康管理事务） | E17: 179,868.04 | F17: 0.00 | G17: 0.00 | H17: 0.00 | I17: 0.00 | J17: 0.00 | K17: 179,868.04 | L17: 179,868.04 | M17: 0.00
A18: 213 | D18: 农林水支出 | E18: =E19+E21 -> 717,137.41 | F18: 0.00 | G18: 0.00 | H18: 0.00 | I18: 0.00 | J18: 0.00 | K18: 717,137.41 | L18: 717,137.41 | M18: 0.00
A19: 213 | B19: 01 | D19: 农业农村 | E19: =E20 -> 528,722.14 | F19: 0.00 | G19: 0.00 | H19: 0.00 | I19: 0.00 | J19: 0.00 | K19: 528,722.14 | L19: 528,722.14 | M19: 0.00
A20: 213 | B20: 01 | C20: 01 | D20: 行政运行（农业） | E20: 528,722.14 | F20: 0.00 | G20: 0.00 | H20: 0.00 | I20: 0.00 | J20: 0.00 | K20: 528,722.14 | L20: 528,722.14 | M20: 0.00
A21: 213 | B21: 02 | D21: 林业 | E21: =E22 -> 188,415.27 | F21: 0.00 | G21: 0.00 | H21: 0.00 | I21: 0.00 | J21: 0.00 | K21: 188,415.27 | L21: 188,415.27 | M21: 0.00
A22: 213 | B22: 02 | C22: 01 | D22: 行政运行（林业） | E22: 188,415.27 | F22: 0.00 | G22: 0.00 | H22: 0.00 | I22: 0.00 | J22: 0.00 | K22: 188,415.27 | L22: 188,415.27 | M22: 0.00
A23: 220 | D23: 自然资源海洋气象等支出 | E23: =E24 -> 244,562.65 | F23: 0.00 | G23: 0.00 | H23: 0.00 | I23: 0.00 | J23: 0.00 | K23: 244,562.65 | L23: 244,562.65 | M23: 0.00
A24: 220 | B24: 01 | D24: 自然资源事务 | E24: =SUM(E25:E26) -> 244,562.65 | F24: 0.00 | G24: 0.00 | H24: 0.00 | I24: 0.00 | J24: 0.00 | K24: 244,562.65 | L24: 244,562.65 | M24: 0.00
A25: 220 | B25: 01 | C25: 01 | D25: 行政运行（自然资源事务） | E25: 134,450.96 | F25: 0.00 | G25: 0.00 | H25: 0.00 | I25: 0.00 | J25: 0.00 | K25: 134,450.96 | L25: 134,450.96 | M25: 0.00
A26: 220 | B26: 01 | C26: 04 | D26: 国土资源规划及管理 | E26: 110,111.69 | F26: 0.00 | G26: 0.00 | H26: 0.00 | I26: 0.00 | J26: 0.00 | K26: 110,111.69 | L26: 110,111.69 | M26: 0.00
A27: 224 | D27: 灾害防治及应急管理支出 | E27: =E28 -> 283,523.09 | F27: 0.00 | G27: 0.00 | H27: 0.00 | I27: 0.00 | J27: 0.00 | K27: 283,523.09 | L27: 283,523.09 | M27: 0.00
A28: 224 | B28: 01 | D28: 应急管理事物 | E28: =E29 -> 283,523.09 | F28: 0.00 | G28: 0.00 | H28: 0.00 | I28: 0.00 | J28: 0.00 | K28: 283,523.09 | L28: 283,523.09 | M28: 0.00
A29: 224 | B29: 01 | C29: 06 | D29: 安全监管 | E29: 283,523.09 | F29: 0.00 | G29: 0.00 | H29: 0.00 | I29: 0.00 | J29: 0.00 | K29: 283,523.09 | L29: 283,523.09 | M29: 0.00

Sheet 8丶基本-商品服务
A1: 附件8：
A2: 基本支出预算明细表-商品和服务支出(按部门预算经济分类)
A3: 单位名称：洗马乡财政所 | AD3: 单位：元
A4: 功能科目 | D4: 科目名称 | E4: 总 计 | F4: 办公费 | G4: 印刷费 | H4: 咨询费 | I4: 手续费 | J4: 水费 | K4: 电费 | L4: 邮电费 | M4: 取暖费 | N4: 物业管理费 | O4: 差旅费 | P4: 维修(护)费 | Q4: 租赁费 | R4: 会议费 | S4: 培训费 | T4: 公务接待费 | U4: 专用材料费 | V4: 被装购置费 | W4: 专用燃料费 | X4: 劳务费 | Y4: 物业委托费 | Z4: 工会经费 | AA4: 福利费 | AB4: 公务用车运行维护费 | AC4: 其他交通费用 | AD4: 税金及附加费用 | AE4: 其他商品和服务支出
A5: 类 | B5: 款 | C5: 项
D6: 合计 | E6: =E7 -> 1,282,400.00 | F6: 150,000.00 | G6: 273,400.00 | H6: 0.00 | I6: 0.00 | J6: 0.00 | K6: 37,500.00 | L6: 10,000.00 | M6: 0.00 | N6: 0.00 | O6: 255,000.00 | P6: 20,000.00 | Q6: 0.00 | R6: 35,000.00 | S6: 10,000.00 | T6: 90,000.00 | U6: 0.00 | V6: 0.00 | W6: 0.00 | X6: 22,500.00 | Y6: 0.00 | Z6: 73,000.00 | AA6: 0.00 | AB6: 100,000.00 | AC6: 56,000.00 | AD6: 0.00 | AE6: 150,000.00
A7: 201 | D7: 一般公共服务支出 | E7: =E8 -> 1,282,400.00 | F7: 150,000.00 | G7: 273,400.00 | H7: 0.00 | I7: 0.00 | J7: 0.00 | K7: 37,500.00 | L7: 10,000.00 | M7: 0.00 | N7: 0.00 | O7: 255,000.00 | P7: 20,000.00 | Q7: 0.00 | R7: 35,000.00 | S7: 10,000.00 | T7: 90,000.00 | U7: 0.00 | V7: 0.00 | W7: 0.00 | X7: 22,500.00 | Y7: 0.00 | Z7: 73,000.00 | AA7: 0.00 | AB7: 100,000.00 | AC7: 56,000.00 | AD7: 0.00 | AE7: 150,000.00
A8: 201 | B8: 03 | D8: 政府办公厅（室）及相关机构事务 | E8: =E9 -> 1,282,400.00 | F8: 150,000.00 | G8: 273,400.00 | H8: 0.00 | I8: 0.00 | J8: 0.00 | K8: 37,500.00 | L8: 10,000.00 | M8: 0.00 | N8: 0.00 | O8: 255,000.00 | P8: 20,000.00 | Q8: 0.00 | R8: 35,000.00 | S8: 10,000.00 | T8: 90,000.00 | U8: 0.00 | V8: 0.00 | W8: 0.00 | X8: 22,500.00 | Y8: 0.00 | Z8: 73,000.00 | AA8: 0.00 | AB8: 100,000.00 | AC8: 56,000.00 | AD8: 0.00 | AE8: 150,000.00
A9: 201 | B9: 03 | C9: 01 | D9: 行政运行（政府办公厅（室）及相关机构事务） | E9: 1,282,400.00 | F9: 150,000.00 | G9: 273,400.00 | H9: 0.00 | I9: 0.00 | J9: 0.00 | K9: 37,500.00 | L9: 10,000.00 | M9: 0.00 | N9: 0.00 | O9: 255,000.00 | P9: 20,000.00 | Q9: 0.00 | R9: 35,000.00 | S9: 10,000.00 | T9: 90,000.00 | U9: 0.00 | V9: 0.00 | W9: 0.00 | X9: 22,500.00 | Y9: 0.00 | Z9: 73,000.00 | AA9: 0.00 | AB9: 100,000.00 | AC9: 56,000.00 | AD9: 0.00 | AE9: 150,000.00

Sheet 9丶商品服务（政府预算）
A1: 附件9：
A2: 基本支出预算明细表-商品和服务支出(按政府预算经济分类)
A3: 单位名称：洗马乡财政所 | Q3: 单位：元
A4: 功能科目 | D4: 功能科目名称 | E4: 总计 | F4: 机关商品和服务支出 | P4: 对事业单位经常性补助
A5: 类 | B5: 款 | C5: 项 | F5: 合计 | G5: 办公经费 | H5: 会议费 | I5: 培训费 | J5: 专用材料购置费 | K5: 委托业务费 | L5: 公务接待费 | M5: 公务用车运行维护费 | N5: 维修(护)费 | O5: 其他商品和服务支出 | P5: 合计 | Q5: 商品和服务支出 | R5: 其他对事业单位补助
E6: =E7+E10+E13+E16+E21+E25 -> 1,282,400.00 | F6: 1,282,400.00 | G6: 854,900.00 | H6: 35,000.00 | I6: 10,000.00 | J6: 0.00 | K6: 22,500.00 | L6: 90,000.00 | M6: 100,000.00 | N6: 20,000.00 | O6: 150,000.00 | P6: 0.00 | Q6: 0.00 | R6: 0.00
A7: 201 | E7: =E8 -> 1,282,400.00 | F7: 1,282,400.00 | G7: 854,900.00 | H7: 35,000.00 | I7: 10,000.00 | J7: 0.00 | K7: 22,500.00 | L7: 90,000.00 | M7: 100,000.00 | N7: 20,000.00 | O7: 150,000.00 | P7: 0.00 | Q7: 0.00 | R7: 0.00
A8: 201 | B8: 03 | E8: =E9 -> 1,282,400.00 | F8: 1,282,400.00 | G8: 854,900.00 | H8: 35,000.00 | I8: 10,000.00 | J8: 0.00 | K8: 22,500.00 | L8: 90,000.00 | M8: 100,000.00 | N8: 20,000.00 | O8: 150,000.00 | P8: 0.00 | Q8: 0.00 | R8: 0.00
A9: 201 | B9: 03 | C9: 01 | D9: 行政运行（政府办公厅（室）及相关机构事务） | E9: 1,282,400.00 | F9: 1,282,400.00 | G9: 854,900.00 | H9: 35,000.00 | I9: 10,000.00 | J9: 0.00 | K9: 22,500.00 | L9: 90,000.00 | M9: 100,000.00 | N9: 20,000.00 | O9: 150,000.00 | P9: 0.00 | Q9: 0.00 | R9: 0.00
A10: 208 | E10: =E11 -> 0.00 | F10: 0.00 | G10: 0.00 | H10: 0.00 | I10: 0.00 | J10: 0.00 | K10: 0.00 | L10: 0.00 | M10: 0.00 | N10: 0.00 | O10: 0.00 | P10: 0.00 | Q10: 0.00 | R10: 0.00
A11: 208 | B11: 01 | E11: =E12 -> 0.00 | F11: 0.00 | G11: 0.00 | H11: 0.00 | I11: 0.00 | J11: 0.00 | K11: 0.00 | L11: 0.00 | M11: 0.00 | N11: 0.00 | O11: 0.00 | P11: 0.00 | Q11: 0.00 | R11: 0.00
A12: 208 | B12: 01 | C12: 01 | D12: 行政运行（人力资源和社会保障管理事务） | E12: 0.00 | F12: 0.00 | G12: 0.00 | H12: 0.00 | I12: 0.00 | J12: 0.00 | K12: 0.00 | L12: 0.00 | M12: 0.00 | N12: 0.00 | O12: 0.00 | P12: 0.00 | Q12: 0.00 | R12: 0.00
A13: 210 | E13: =E14 -> 0.00 | F13: 0.00 | G13: 0.00 | H13: 0.00 | I13: 0.00 | J13: 0.00 | K13: 0.00 | L13: 0.00 | M13: 0.00 | N13: 0.00 | O13: 0.00 | P13: 0.00 | Q13: 0.00 | R13: 0.00
A14: 210 | B14: 01 | E14: =E15 -> 0.00 | F14: 0.00 | G14: 0.00 | H14: 0.00 | I14: 0.00 | J14: 0.00 | K14: 0.00 | L14: 0.00 | M14: 0.00 | N14: 0.00 | O14: 0.00 | P14: 0.00 | Q14: 0.00 | R14: 0.00
A15: 210 | B15: 01 | C15: 01 | D15: 行政运行（卫生健康管理事务） | E15: 0.00 | F15: 0.00 | G15: 0.00 | H15: 0.00 | I15: 0.00 | J15: 0.00 | K15: 0.00 | L15: 0.00 | M15: 0.00 | N15: 0.00 | O15: 0.00 | P15: 0.00 | Q15: 0.00 | R15: 0.00
A16: 213 | E16: =E17+E19 -> 0.00 | F16: 0.00 | G16: 0.00 | H16: 0.00 | I16: 0.00 | J16: 0.00 | K16: 0.00 | L16: 0.00 | M16: 0.00 | N16: 0.00 | O16: 0.00 | P16: 0.00 | Q16: 0.00 | R16: 0.00
A17: 213 | B17: 01 | E17: =E18 -> 0.00 | F17: 0.00 | G17: 0.00 | H17: 0.00 | I17: 0.00 | J17: 0.00 | K17: 0.00 | L17: 0.00 | M17: 0.00 | N17: 0.00 | O17: 0.00 | P17: 0.00 | Q17: 0.00 | R17: 0.00
A18: 213 | B18: 01 | C18: 01 | D18: 行政运行（农业） | E18: 0.00 | F18: 0.00 | G18: 0.00 | H18: 0.00 | I18: 0.00 | J18: 0.00 | K18: 0.00 | L18: 0.00 | M18: 0.00 | N18: 0.00 | O18: 0.00 | P18: 0.00 | Q18: 0.00 | R18: 0.00
A19: 213 | B19: 02 | E19: =E20 -> 0.00 | F19: 0.00 | G19: 0.00 | H19: 0.00 | I19: 0.00 | J19: 0.00 | K19: 0.00 | L19: 0.00 | M19: 0.00 | N19: 0.00 | O19: 0.00 | P19: 0.00 | Q19: 0.00 | R19: 0.00
A20: 213 | B20: 02 | C20: 01 | D20: 行政运行（林业） | E20: 0.00 | F20: 0.00 | G20: 0.00 | H20: 0.00 | I20: 0.00 | J20: 0.00 | K20: 0.00 | L20: 0.00 | M20: 0.00 | N20: 0.00 | O20: 0.00 | P20: 0.00 | Q20: 0.00 | R20: 0.00
A21: 220 | E21: =E22 -> 0.00 | F21: 0.00 | G21: 0.00 | H21: 0.00 | I21: 0.00 | J21: 0.00 | K21: 0.00 | L21: 0.00 | M21: 0.00 | N21: 0.00 | O21: 0.00 | P21: 0.00 | Q21: 0.00 | R21: 0.00
A22: 220 | B22: 01 | E22: =SUM(E23:E24) -> 0.00 | F22: 0.00 | G22: 0.00 | H22: 0.00 | I22: 0.00 | J22: 0.00 | K22: 0.00 | L22: 0.00 | M22: 0.00 | N22: 0.00 | O22: 0.00 | P22: 0.00 | Q22: 0.00 | R22: 0.00
A23: 220 | B23: 01 | C23: 01 | D23: 行政运行（自然资源事务） | E23: 0.00 | F23: 0.00 | G23: 0.00 | H23: 0.00 | I23: 0.00 | J23: 0.00 | K23: 0.00 | L23: 0.00 | M23: 0.00 | N23: 0.00 | O23: 0.00 | P23: 0.00 | Q23: 0.00 | R23: 0.00
A24: 220 | B24: 01 | C24: 04 | D24: 国土资源规划及管理 | E24: 0.00 | F24: 0.00 | G24: 0.00 | H24: 0.00 | I24: 0.00 | J24: 0.00 | K24: 0.00 | L24: 0.00 | M24: 0.00 | N24: 0.00 | O24: 0.00 | P24: 0.00 | Q24: 0.00 | R24: 0.00
A25: 224 | E25: =E26 -> 0.00 | F25: 0.00 | G25: 0.00 | H25: 0.00 | I25: 0.00 | J25: 0.00 | K25: 0.00 | L25: 0.00 | M25: 0.00 | N25: 0.00 | O25: 0.00 | P25: 0.00 | Q25: 0.00 | R25: 0.00
A26: 224 | B26: 01 | E26: =E27 -> 0.00 | F26: 0.00 | G26: 0.00 | H26: 0.00 | I26: 0.00 | J26: 0.00 | K26: 0.00 | L26: 0.00 | M26: 0.00 | N26: 0.00 | O26: 0.00 | P26: 0.00 | Q26: 0.00 | R26: 0.00
A27: 224 | B27: 01 | C27: 06 | D27: 安全监管 | E27: 0.00 | F27: 0.00 | G27: 0.00 | H27: 0.00 | I27: 0.00 | J27: 0.00 | K27: 0.00 | L27: 0.00 | M27: 0.00 | N27: 0.00 | O27: 0.00 | P27: 0.00 | Q27: 0.00 | R27: 0.00

Sheet 10丶基本-个人家庭
A1: 附件10：
A2: 基本支出预算明细表-对个人和家庭的补助(按部门预算经济分类)
A3: 单位名称：洗马乡财政所 | P3: 单位：元
A4: 功能科目 | D4: 科目名称 | E4: 总计 | F4: 离休费 | G4: 退休费 | H4: 退职(役)费 | I4: 抚恤金 | J4: 生活补助 | K4: 救济费 | L4: 医疗费补助 | M4: 助学金 | N4: 奖励金 | O4: 个人农业生产补贴 | P4: 其他对个人和家庭的补助
A5: 类 | B5: 款 | C5: 项

Sheet 11丶个人家庭（政府预算）
A1: 附件11：
A2: 基本支出预算明细表-对个人和家庭的补助(按政府预算经济分类)
A3: 单位名称：洗马乡财政所 | J3: 单位：元
A4: 功能科目 | D4: 功能科目名称 | E4: 总计 | F4: 社会福利和救济 | G4: 助学金 | H4: 个人农业生产补贴 | I4: 离退休费 | J4: 其他对个人和家庭的补助
A5: 类 | B5: 款 | C5: 项

Sheet 12、公共财政预算拨款收支预算
A1: 附件12：
A2: 公共财政拨款收支预算总表
A3: 单位名称:洗马乡财政所 | F3: 单位:元
A4: 收入 | C4: 支出
A5: 项目 | B5: 预算数 | C5: 项目 | D5: 预算数 | E5: 项目 | F5: 预算数
A6: 一、公共财政预算拨款 | B6: 6,293,173.46 | C6: 一、一般公共服务支出 | D6: 2,589,682.36 | E6: 一、人员支出 | F6: 2,801,373.46
A7: 经费拨款 | B7: 6,160,773.46 | C7: 二、公共安全支出 | D7: 0.00 | E7: 工资福利支出 | F7: 2,801,373.46
A8: 在职人员经费拨款 | B8: 2,801,373.46 | C8: 三、教育支出 | D8: 0.00 | E8: 对个人和家庭的补助 | F8: 0.00
A9: 离退休人员经费拨款 | B9: 0.00 | C9: 四、科学技术支出 | D9: 0.00 | E9: 二、公用支出 | F9: 1,282,400.00
A10: 公用经费拨款 | B10: 1,150,000.00 | C10: 五、文化体育与传媒支出 | D10: 0.00 | E10: 一般商品和服务支出 | F10: 1,282,400.00
A11: 专项经费拨款 | B11: 2,209,400.00 | C11: 六、社会保障和就业支出 | D11: 68,999.91 | E11: 三、项目支出 | F11: 2,209,400.00
A12: 纳入公共预算管理的非税收入拨款 | B12: 132,400.00 | C12: 七、医疗卫生与计划生育支出 | D12: 289,868.04 | E12: 专项商品和服务支出 | F12: 2,209,400.00
A13: 专项收入 | B13: 0.00 | C13: 八、节能环保支出 | D13: 0.00 | E13: 专项对个人和家庭补助 | F13: 0.00
A14: 行政事业性收费收入 | B14: 0.00 | C14: 九、城乡社区支出 | D14: 0.00 | E14: 资本性支出（基本建设） | F14: 0.00
A15: 罚没收入 | B15: 0.00 | C15: 十、农林水支出 | D15: 2,816,537.41 | E15: 资本性支出 | F15: 0.00
A16: 国有资本经营收入 | B16: 0.00 | C16: 十一、交通运输支出 | D16: 0.00 | E16: 对企业补助 | F16: 0.00
A17: 国有资源（资产）有偿使用收入 | B17: 132,400.00 | C17: 十二、资源勘探信息等支出 | D17: 0.00 | E17: 其他支出 | F17: 0.00
A18: 其他收入 | B18: 0.00 | C18: 十三、商品服务业等支出 | D18: 0.00 | E18: 四、上缴政府统筹支出 | F18: 0.00
A19: 二、政府性基金拨款 | B19: 0.00 | C19: 十四、金融支出 | D19: 0.00
C20: 十五、国土海洋气象等支出 | D20: 244,562.65
C21: 十六、住房保障支出 | D21: 0.00
C22: 十七、粮油物资储备支出 | D22: 0.00
C23: 十八、其他支出 | D23: 0.00
A25: 收入总计 | B25: 6,293,173.46 | C25: 支出总计 | D25: 6,009,650.37 | E25: 支出总计 | F25: 6,293,173.46

Sheet 13丶一般预算支出表
A1: 附件13：
A2: 一般公共预算支出情况表
A3: 单位名称：洗马乡财政所 | R3: 单位：元
A4: 功能科目 | E4: 总 计 | F4: 基本支出 | J4: 项目支出
A5: 科目编码 | D5: 科目名称 | F5: 合计 | G5: 工资福利支出 | H5: 一般商品和服务支出 | I5: 对个人和家庭的补助 | J5: 合计 | K5: 按项目管理的商品和服务支出 | L5: 按项目管理的对个人和家庭的补助 | M5: 债务利息及费用支出 | N5: 资本性支出(基本建设) | O5: 资本性支出 | P5: 对企业补助(基本建设) | Q5: 对企业补助 | R5: 其他支出
A6: 类 | B6: 款 | C6: 项
D7: 合计 | E7: =E8+E13+E16+E22+E29+E33 -> 6,293,173.46 | F7: 4,083,773.46 | G7: 2,801,373.46 | H7: 1,282,400.00 | I7: 0.00 | J7: 2,209,400.00 | K7: 2,209,400.00 | L7: 0.00 | M7: 0.00 | N7: 0.00 | O7: 0.00 | P7: 0.00 | Q7: 0.00 | R7: 0.00
A8: 201 | D8: 一般公共服务支出 | E8: =E9+E11 -> 2,589,682.36 | F8: 2,589,682.36 | G8: 1,307,282.36 | H8: 1,282,400.00 | I8: 0.00 | J8: 0.00 | K8: 0.00 | L8: 0.00 | M8: 0.00 | N8: 0.00 | O8: 0.00 | P8: 0.00 | Q8: 0.00 | R8: 0.00
A9: 201 | B9: 03 | D9: 政府办公厅（室）及相关机构事务 | E9: =E10 -> 2,420,641.96 | F9: 2,420,641.96 | G9: 1,138,241.96 | H9: 1,282,400.00 | I9: 0.00 | J9: 0.00 | K9: 0.00 | L9: 0.00 | M9: 0.00 | N9: 0.00 | O9: 0.00 | P9: 0.00 | Q9: 0.00 | R9: 0.00
A10: 201 | B10: 03 | C10: 01 | D10: 行政运行（政府办公厅（室）及相关机构事务） | E10: 2,420,641.96 | F10: 2,420,641.96 | G10: 1,138,241.96 | H10: 1,282,400.00 | I10: 0.00 | J10: 0.00 | K10: 0.00 | L10: 0.00 | M10: 0.00 | N10: 0.00 | O10: 0.00 | P10: 0.00 | Q10: 0.00 | R10: 0.00
A11: 201 | B11: 06 | D11: 财政事务 | E11: =E12 -> 169,040.40 | F11: 169,040.40 | G11: 169,040.40 | H11: 0.00 | I11: 0.00 | J11: 0.00 | K11: 0.00 | L11: 0.00 | M11: 0.00 | N11: 0.00 | O11: 0.00 | P11: 0.00 | Q11: 0.00 | R11: 0.00
A12: 201 | B12: 06 | C12: 01 | D12: 行政运行（财政事务） | E12: 169,040.40 | F12: 169,040.40 | G12: 169,040.40 | H12: 0.00 | I12: 0.00 | J12: 0.00 | K12: 0.00 | L12: 0.00 | M12: 0.00 | N12: 0.00 | O12: 0.00 | P12: 0.00 | Q12: 0.00 | R12: 0.00
A13: 208 | D13: 社会保障和就业支出 | E13: =E14 -> 68,999.91 | F13: 68,999.91 | G13: 68,999.91 | H13: 0.00 | I13: 0.00 | J13: 0.00 | K13: 0.00 | L13: 0.00 | M13: 0.00 | N13: 0.00 | O13: 0.00 | P13: 0.00 | Q13: 0.00 | R13: 0.00
A14: 208 | B14: 01 | D14: 人力资源和社会保障管理事务 | E14: =E15 -> 68,999.91 | F14: 68,999.91 | G14: 68,999.91 | H14: 0.00 | I14: 0.00 | J14: 0.00 | K14: 0.00 | L14: 0.00 | M14: 0.00 | N14: 0.00 | O14: 0.00 | P14: 0.00 | Q14: 0.00 | R14: 0.00
A15: 208 | B15: 01 | C15: 01 | D15: 行政运行（人力资源和社会保障管理事务） | E15: 68,999.91 | F15: 68,999.91 | G15: 68,999.91 | H15: 0.00 | I15: 0.00 | J15: 0.00 | K15: 0.00 | L15: 0.00 | M15: 0.00 | N15: 0.00 | O15: 0.00 | P15: 0.00 | Q15: 0.00 | R15: 0.00
A16: 210 | D16: 卫生健康支出 | E16: =E17+E19 -> 289,868.04 | F16: 179,868.04 | G16: 179,868.04 | H16: 0.00 | I16: 0.00 | J16: 110,000.00 | K16: 110,000.00 | L16: 0.00 | M16: 0.00 | N16: 0.00 | O16: 0.00 | P16: 0.00 | Q16: 0.00 | R16: 0.00
A17: 210 | B17: 01 | D17: 卫生健康管理事物 | E17: =E18 -> 179,868.04 | F17: 179,868.04 | G17: 179,868.04 | H17: 0.00 | I17: 0.00 | J17: 0.00 | K17: 0.00 | L17: 0.00 | M17: 0.00 | N17: 0.00 | O17: 0.00 | P17: 0.00 | Q17: 0.00 | R17: 0.00
A18: 210 | B18: 01 | C18: 01 | D18: 行政运行（卫生健康管理事务） | E18: 179,868.04 | F18: 179,868.04 | G18: 179,868.04 | H18: 0.00 | I18: 0.00 | J18: 0.00 | K18: 0.00 | L18: 0.00 | M18: 0.00 | N18: 0.00 | O18: 0.00 | P18: 0.00 | Q18: 0.00 | R18: 0.00
A19: 210 | B19: 07 | D19: 计划生育事务 | E19: =SUM(E20:E21) -> 110,000.00 | F19: 0.00 | G19: 0.00 | H19: 0.00 | I19: 0.00 | J19: 110,000.00 | K19: 110,000.00 | L19: 0.00 | M19: 0.00 | N19: 0.00 | O19: 0.00 | P19: 0.00 | Q19: 0.00 | R19: 0.00
A20: 210 | B20: 07 | C20: 16 | D20: 计划生育机构 | E20: 31,000.00 | F20: 0.00 | G20: 0.00 | H20: 0.00 | I20: 0.00 | J20: 31,000.00 | K20: 31,000.00 | L20: 0.00 | M20: 0.00 | N20: 0.00 | O20: 0.00 | P20: 0.00 | Q20: 0.00 | R20: 0.00
A21: 210 | B21: 07 | C21: 99 | D21: 其他计划生育事务支出 | E21: 79,000.00 | F21: 0.00 | G21: 0.00 | H21: 0.00 | I21: 0.00 | J21: 79,000.00 | K21: 79,000.00 | L21: 0.00 | M21: 0.00 | N21: 0.00 | O21: 0.00 | P21: 0.00 | Q21: 0.00 | R21: 0.00
A22: 213 | D22: 农林水支出 | E22: =E23+E25+E27 -> 2,816,537.41 | F22: 717,137.41 | G22: 717,137.41 | H22: 0.00 | I22: 0.00 | J22: 2,099,400.00 | K22: 2,099,400.00 | L22: 0.00 | M22: 0.00 | N22: 0.00 | O22: 0.00 | P22: 0.00 | Q22: 0.00 | R22: 0.00
A23: 213 | B23: 01 | D23: 农业农村 | E23: =E24 -> 528,722.14 | F23: 528,722.14 | G23: 528,722.14 | H23: 0.00 | I23: 0.00 | J23: 0.00 | K23: 0.00 | L23: 0.00 | M23: 0.00 | N23: 0.00 | O23: 0.00 | P23: 0.00 | Q23: 0.00 | R23: 0.00
A24: 213 | B24: 01 | C24: 01 | D24: 行政运行（农业） | E24: 528,722.14 | F24: 528,722.14 | G24: 528,722.14 | H24: 0.00 | I24: 0.00 | J24: 0.00 | K24: 0.00 | L24: 0.00 | M24: 0.00 | N24: 0.00 | O24: 0.00 | P24: 0.00 | Q24: 0.00 | R24: 0.00
A25: 213 | B25: 02 | D25: 林业 | E25: =E26 -> 188,415.27 | F25: 188,415.27 | G25: 188,415.27 | H25: 0.00 | I25: 0.00 | J25: 0.00 | K25: 0.00 | L25: 0.00 | M25: 0.00 | N25: 0.00 | O25: 0.00 | P25: 0.00 | Q25: 0.00 | R25: 0.00
A26: 213 | B26: 02 | C26: 01 | D26: 行政运行（林业） | E26: 188,415.27 | F26: 188,415.27 | G26: 188,415.27 | H26: 0.00 | I26: 0.00 | J26: 0.00 | K26: 0.00 | L26: 0.00 | M26: 0.00 | N26: 0.00 | O26: 0.00 | P26: 0.00 | Q26: 0.00 | R26: 0.00
A27: 213 | B27: 07 | D27: 农村综合改革 | E27: =E28 -> 2,099,400.00 | F27: 0.00 | G27: 0.00 | H27: 0.00 | I27: 0.00 | J27: 2,099,400.00 | K27: 2,099,400.00 | L27: 0.00 | M27: 0.00 | N27: 0.00 | O27: 0.00 | P27: 0.00 | Q27: 0.00 | R27: 0.00
A28: 213 | B28: 07 | C28: 05 | D28: 对村民委员会和村党支部的补助 | E28: 2,099,400.00 | F28: 0.00 | G28: 0.00 | H28: 0.00 | I28: 0.00 | J28: 2,099,400.00 | K28: 2,099,400.00 | L28: 0.00 | M28: 0.00 | N28: 0.00 | O28: 0.00 | P28: 0.00 | Q28: 0.00 | R28: 0.00
A29: 220 | D29: 自然资源海洋气象等支出 | E29: =E30 -> 244,562.65 | F29: 244,562.65 | G29: 244,562.65 | H29: 0.00 | I29: 0.00 | J29: 0.00 | K29: 0.00 | L29: 0.00 | M29: 0.00 | N29: 0.00 | O29: 0.00 | P29: 0.00 | Q29: 0.00 | R29: 0.00
A30: 220 | B30: 01 | D30: 自然资源事务 | E30: =SUM(E31:E32) -> 244,562.65 | F30: 244,562.65 | G30: 244,562.65 | H30: 0.00 | I30: 0.00 | J30: 0.00 | K30: 0.00 | L30: 0.00 | M30: 0.00 | N30: 0.00 | O30: 0.00 | P30: 0.00 | Q30: 0.00 | R30: 0.00
A31: 220 | B31: 01 | C31: 01 | D31: 行政运行（自然资源事务） | E31: 134,450.96 | F31: 134,450.96 | G31: 134,450.96 | H31: 0.00 | I31: 0.00 | J31: 0.00 | K31: 0.00 | L31: 0.00 | M31: 0.00 | N31: 0.00 | O31: 0.00 | P31: 0.00 | Q31: 0.00 | R31: 0.00
A32: 220 | B32: 01 | C32: 04 | D32: 国土资源规划及管理 | E32: 110,111.69 | F32: 110,111.69 | G32: 110,111.69 | H32: 0.00 | I32: 0.00 | J32: 0.00 | K32: 0.00 | L32: 0.00 | M32: 0.00 | N32: 0.00 | O32: 0.00 | P32: 0.00 | Q32: 0.00 | R32: 0.00
A33: 224 | D33: 灾害防治及应急管理支出 | E33: =E34 -> 283,523.09 | F33: 283,523.09 | G33: 283,523.09 | H33: 0.00 | I33: 0.00 | J33: 0.00 | K33: 0.00 | L33: 0.00 | M33: 0.00 | N33: 0.00 | O33: 0.00 | P33: 0.00 | Q33: 0.00 | R33: 0.00
A34: 224 | B34: 01 | D34: 应急管理事物 | E34: =E35 -> 283,523.09 | F34: 283,523.09 | G34: 283,523.09 | H34: 0.00 | I34: 0.00 | J34: 0.00 | K34: 0.00 | L34: 0.00 | M34: 0.00 | N34: 0.00 | O34: 0.00 | P34: 0.00 | Q34: 0.00 | R34: 0.00
A35: 224 | B35: 01 | C35: 06 | D35: 安全监管 | E35: 283,523.09 | F35: 283,523.09 | G35: 283,523.09 | H35: 0.00 | I35: 0.00 | J35: 0.00 | K35: 0.00 | L35: 0.00 | M35: 0.00 | N35: 0.00 | O35: 0.00 | P35: 0.00 | Q35: 0.00 | R35: 0.00

Sheet 14丶一般预算基本支出表
A1: 附件14：
A2: 一般公共预算基本支出情况表
A3: 单位名称：洗马乡财政所 | H3: 单位：元
A4: 功能科目 | E4: 基本支出
A5: 科目编码 | D5: 科目名称 | E5: 合计 | F5: 工资福利支出 | G5: 一般商品和服务支出 | H5: 对个人和家庭的补助
A6: 类 | B6: 款 | C6: 项
E7: =E8+E13+E16+E19+E24+E28 -> 4,083,773.46 | F7: =F8+F13+F16+F19+F24+F28 -> 2,801,373.46 | G7: =G8+G13+G16+G19+G24+G28 -> 1,282,400.00 | H7: =H8+H13+H16+H19+H24+H28 -> 0.00
A8: 201 | E8: =E9+E11 -> 2,589,682.36 | F8: =F9+F11 -> 1,307,282.36 | G8: =G9+G11 -> 1,282,400.00 | H8: =H9+H11 -> 0.00
A9: 201 | B9: 03 | E9: =E10 -> 2,420,641.96 | F9: =F10 -> 1,138,241.96 | G9: =G10 -> 1,282,400.00 | H9: =H10 -> 0.00
A10: 201 | B10: 03 | C10: 01 | D10: 行政运行（政府办公厅（室）及相关机构事务） | E10: 2,420,641.96 | F10: 1,138,241.96 | G10: 1,282,400.00 | H10: 0.00
A11: 201 | B11: 06 | E11: =E12 -> 169,040.40 | F11: =F12 -> 169,040.40 | G11: =G12 -> 0.00 | H11: =H12 -> 0.00
A12: 201 | B12: 06 | C12: 01 | D12: 行政运行（财政事务） | E12: 169,040.40 | F12: 169,040.40 | G12: 0.00 | H12: 0.00
A13: 208 | E13: =E14 -> 68,999.91 | F13: =F14 -> 68,999.91 | G13: =G14 -> 0.00 | H13: =H14 -> 0.00
A14: 208 | B14: 01 | E14: =E15 -> 68,999.91 | F14: =F15 -> 68,999.91 | G14: =G15 -> 0.00 | H14: =H15 -> 0.00
A15: 208 | B15: 01 | C15: 01 | D15: 行政运行（人力资源和社会保障管理事务） | E15: 68,999.91 | F15: 68,999.91 | G15: 0.00 | H15: 0.00
A16: 210 | E16: =E17 -> 179,868.04 | F16: =F17 -> 179,868.04 | G16: =G17 -> 0.00 | H16: =H17 -> 0.00
A17: 210 | B17: 01 | E17: =E18 -> 179,868.04 | F17: =F18 -> 179,868.04 | G17: =G18 -> 0.00 | H17: =H18 -> 0.00
A18: 210 | B18: 01 | C18: 01 | D18: 行政运行（卫生健康管理事务） | E18: 179,868.04 | F18: 179,868.04 | G18: 0.00 | H18: 0.00
A19: 213 | E19: =E20+E22 -> 717,137.41 | F19: =F20+F22 -> 717,137.41 | G19: =G20+G22 -> 0.00 | H19: =H20+H22 -> 0.00
A20: 213 | B20: 01 | E20: =E21 -> 528,722.14 | F20: =F21 -> 528,722.14 | G20: =G21 -> 0.00 | H20: =H21 -> 0.00
A21: 213 | B21: 01 | C21: 01 | D21: 行政运行（农业） | E21: 528,722.14 | F21: 528,722.14 | G21: 0.00 | H21: 0.00
A22: 213 | B22: 02 | E22: =E23 -> 188,415.27 | F22: =F23 -> 188,415.27 | G22: =G23 -> 0.00 | H22: =H23 -> 0.00
A23: 213 | B23: 02 | C23: 01 | D23: 行政运行（林业） | E23: 188,415.27 | F23: 188,415.27 | G23: 0.00 | H23: 0.00
A24: 220 | E24: =E25 -> 244,562.65 | F24: =F25 -> 244,562.65 | G24: =G25 -> 0.00 | H24: =H25 -> 0.00
A25: 220 | B25: 01 | E25: =SUM(E26:E27) -> 244,562.65 | F25: =SUM(F26:F27) -> 244,562.65 | G25: =SUM(G26:G27) -> 0.00 | H25: =SUM(H26:H27) -> 0.00
A26: 220 | B26: 01 | C26: 01 | D26: 行政运行（自然资源事务） | E26: 134,450.96 | F26: 134,450.96 | G26: 0.00 | H26: 0.00
A27: 220 | B27: 01 | C27: 04 | D27: 国土资源规划及管理 | E27: 110,111.69 | F27: 110,111.69 | G27: 0.00 | H27: 0.00
A28: 224 | E28: =E29 -> 283,523.09 | F28: =F29 -> 283,523.09 | G28: =G29 -> 0.00 | H28: =H29 -> 0.00
A29: 224 | B29: 01 | E29: =E30 -> 283,523.09 | F29: =F30 -> 283,523.09 | G29: =G30 -> 0.00 | H29: =H30 -> 0.00
A30: 224 | B30: 01 | C30: 06 | D30: 安全监管 | E30: 283,523.09 | F30: 283,523.09 | G30: 0.00 | H30: 0.00

Sheet 15丶一般-工资福利
A1: 附件15：
A2: 一般公共预算基本支出预算明细表-工资福利支出(按部门预算经济分类)
A3: 单位名称：洗马乡财政所 | T3: 单位：元
A4: 功能科目 | D4: 科目名称 | E4: 总 计 | F4: 工资津补贴 | K4: 社会保障缴费 | Q4: 住房公积金 | R4: 其他工资福利支出
A5: 类 | B5: 款 | C5: 项 | F5: 合计 | G5: 基本工资 | H5: 津贴补贴 | I5: 奖金 | J5: 绩效工资 | K5: 合计 | L5: 机关事业单位基本养老保险缴费 | M5: 职业年金缴费 | N5: 职工基本医疗保险缴费 | O5: 公务员医疗补助缴费 | P5: 其他社会保障缴费 | R5: 合计 | S5: 伙食补助费 | T5: 医疗费 | U5: 其他工资福利支出
D6: 合计 | E6: =E7+E12+E15+E18+E26+E30 -> 2,801,373.46 | F6: 2,270,484.00 | G6: 1,323,108.00 | H6: 947,376.00 | I6: 0.00 | J6: 0.00 | K6: 451,502.98 | L6: 211,697.28 | M6: 104,848.64 | N6: 105,848.64 | O6: 0.00 | P6: 29,108.42 | Q6: 79,386.48 | R6: 0.00 | S6: 0.00 | T6: 0.00 | U6: 0.00
A7: 201 | D7: 一般公共服务支出 | E7: =E8+E10 -> 1,307,282.36 | F7: 1,061,268.00 | G7: 611,976.00 | H7: 449,292.00 | I7: 0.00 | J7: 0.00 | K7: 209,295.80 | L7: 97,916.16 | M7: 48,958.08 | N7: 48,958.08 | O7: 0.00 | P7: 13,463.48 | Q7: 36,718.56 | R7: 0.00 | S7: 0.00 | T7: 0.00 | U7: 0.00
A8: 201 | B8: 03 | D8: 政府办公厅（室）及相关机构事务 | E8: =E9 -> 1,138,241.96 | F8: 922,860.00 | G8: 535,776.00 | H8: 387,084.00 | I8: 0.00 | J8: 0.00 | K8: 183,235.40 | L8: 85,724.16 | M8: 42,862.08 | N8: 42,862.08 | O8: 0.00 | P8: 11,787.08 | Q8: 32,146.56 | R8: 0.00 | S8: 0.00 | T8: 0.00 | U8: 0.00
A9: 201 | B9: 03 | C9: 01 | D9: 行政运行（政府办公厅（室）及相关机构事务） | E9: 1,138,241.96 | F9: 922,860.00 | G9: 535,776.00 | H9: 387,084.00 | I9: 0.00 | J9: 0.00 | K9: 183,235.40 | L9: 85,724.16 | M9: 42,862.08 | N9: 42,862.08 | O9: 0.00 | P9: 11,787.08 | Q9: 32,146.56 | R9: 0.00 | S9: 0.00 | T9: 0.00 | U9: 0.00
A10: 201 | B10: 06 | D10: 财政事务 | E10: =E11 -> 169,040.40 | F10: 138,408.00 | G10: 76,200.00 | H10: 62,208.00 | I10: 0.00 | J10: 0.00 | K10: 26,060.40 | L10: 12,192.00 | M10: 6,096.00 | N10: 6,096.00 | O10: 0.00 | P10: 1,676.40 | Q10: 4,572.00 | R10: 0.00 | S10: 0.00 | T10: 0.00 | U10: 0.00
A11: 201 | B11: 06 | C11: 01 | D11: 行政运行（财政事务） | E11: 169,040.40 | F11: 138,408.00 | G11: 76,200.00 | H11: 62,208.00 | I11: 0.00 | J11: 0.00 | K11: 26,060.40 | L11: 12,192.00 | M11: 6,096.00 | N11: 6,096.00 | O11: 0.00 | P11: 1,676.40 | Q11: 4,572.00 | R11: 0.00 | S11: 0.00 | T11: 0.00 | U11: 0.00
A12: 208 | D12: 社会保障和就业支出 | E12: =E13 -> 68,999.91 | F12: 55,512.00 | G12: 33,552.00 | H12: 21,960.00 | I12: 0.00 | J12: 0.00 | K12: 11,474.79 | L12: 5,368.32 | M12: 2,684.16 | N12: 2,684.16 | O12: 0.00 | P12: 738.15 | Q12: 2,013.12 | R12: 0.00 | S12: 0.00 | T12: 0.00 | U12: 0.00
A13: 208 | B13: 01 | D13: 人力资源和社会保障管理事务 | E13: =E14 -> 68,999.91 | F13: 55,512.00 | G13: 33,552.00 | H13: 21,960.00 | I13: 0.00 | J13: 0.00 | K13: 11,474.79 | L13: 5,368.32 | M13: 2,684.16 | N13: 2,684.16 | O13: 0.00 | P13: 738.15 | Q13: 2,013.12 | R13: 0.00 | S13: 0.00 | T13: 0.00 | U13: 0.00
A14: 208 | B14: 01 | C14: 01 | D14: 行政运行（人力资源和社会保障管理事务） | E14: 68,999.91 | F14: 55,512.00 | G14: 33,552.00 | H14: 21,960.00 | I14: 0.00 | J14: 0.00 | K14: 11,474.79 | L14: 5,368.32 | M14: 2,684.16 | N14: 2,684.16 | O14: 0.00 | P14: 738.15 | Q14: 2,013.12 | R14: 0.00 | S14: 0.00 | T14: 0.00 | U14: 0.00
A15: 210 | D15: 卫生健康支出 | E15: =E16 -> 179,868.04 | F15: 146,772.00 | G15: 84,816.00 | H15: 61,956.00 | I15: 0.00 | J15: 0.00 | K15: 28,007.08 | L15: 13,570.56 | M15: 5,785.28 | N15: 6,785.28 | O15: 0.00 | P15: 1,865.96 | Q15: 5,088.96 | R15: 0.00 | S15: 0.00 | T15: 0.00 | U15: 0.00
A16: 210 | B16: 01 | D16: 卫生健康管理事物 | E16: =E17 -> 179,868.04 | F16: 146,772.00 | G16: 84,816.00 | H16: 61,956.00 | I16: 0.00 | J16: 0.00 | K16: 28,007.08 | L16: 13,570.56 | M16: 5,785.28 | N16: 6,785.28 | O16: 0.00 | P16: 1,865.96 | Q16: 5,088.96 | R16: 0.00 | S16: 0.00 | T16: 0.00 | U16: 0.00
A17: 210 | B17: 01 | C17: 01 | D17: 行政运行（卫生健康管理事务） | E17: 179,868.04 | F17: 146,772.00 | G17: 84,816.00 | H17: 61,956.00 | I17: 0.00 | J17: 0.00 | K17: 28,007.08 | L17: 13,570.56 | M17: 5,785.28 | N17: 6,785.28 | O17: 0.00 | P17: 1,865.96 | Q17: 5,088.96 | R17: 0.00 | S17: 0.00 | T17: 0.00 | U17: 0.00
A18: 213 | D18: 农林水支出 | E18: =E19+E24 -> 717,137.41 | F18: 578,568.00 | G18: 344,700.00 | H18: 233,868.00 | I18: 0.00 | J18: 0.00 | K18: 117,887.41 | L18: 55,152.00 | M18: 27,576.00 | N18: 27,576.00 | O18: 0.00 | P18: 7,583.41 | Q18: 20,682.00 | R18: 0.00 | S18: 0.00 | T18: 0.00 | U18: 0.00
A19: 213 | B19: 01 | D19: 农业农村 | E19: =SUM(E20:E23) -> 528,722.14 | F19: 426,024.00 | G19: 255,468.00 | H19: 170,556.00 | I19: 0.00 | J19: 0.00 | K19: 87,370.06 | L19: 40,874.88 | M19: 20,437.44 | N19: 20,437.44 | O19: 0.00 | P19: 5,620.30 | Q19: 15,328.08 | R19: 0.00 | S19: 0.00 | T19: 0.00 | U19: 0.00
A20: 213 | B20: 01 | C20: 01 | D20: 行政运行（农业） | E20: 61,704.67 | F20: 49,992.00 | G20: 29,136.00 | H20: 20,856.00 | I20: 0.00 | J20: 0.00 | K20: 9,964.51 | L20: 4,661.76 | M20: 2,330.88 | N20: 2,330.88 | O20: 0.00 | P20: 640.99 | Q20: 1,748.16 | R20: 0.00 | S20: 0.00 | T20: 0.00 | U20: 0.00
A21: 213 | B21: 01 | C21: 01 | D21: 行政运行（农业） | E21: 260,968.40 | F21: 209,916.00 | G21: 126,996.00 | H21: 82,920.00 | I21: 0.00 | J21: 0.00 | K21: 43,432.64 | L21: 20,319.36 | M21: 10,159.68 | N21: 10,159.68 | O21: 0.00 | P21: 2,793.92 | Q21: 7,619.76 | R21: 0.00 | S21: 0.00 | T21: 0.00 | U21: 0.00
A22: 213 | B22: 01 | C22: 01 | D22: 行政运行（农业） | E22: 62,147.47 | F22: 50,676.00 | G22: 28,536.00 | H22: 22,140.00 | I22: 0.00 | J22: 0.00 | K22: 9,759.31 | L22: 4,565.76 | M22: 2,282.88 | N22: 2,282.88 | O22: 0.00 | P22: 627.79 | Q22: 1,712.16 | R22: 0.00 | S22: 0.00 | T22: 0.00 | U22: 0.00
A23: 213 | B23: 01 | C23: 01 | D23: 行政运行（农业） | E23: 143,901.60 | F23: 115,440.00 | G23: 70,800.00 | H23: 44,640.00 | I23: 0.00 | J23: 0.00 | K23: 24,213.60 | L23: 11,328.00 | M23: 5,664.00 | N23: 5,664.00 | O23: 0.00 | P23: 1,557.60 | Q23: 4,248.00 | R23: 0.00 | S23: 0.00 | T23: 0.00 | U23: 0.00
A24: 213 | B24: 02 | D24: 林业 | E24: =E25 -> 188,415.27 | F24: 152,544.00 | G24: 89,232.00 | H24: 63,312.00 | I24: 0.00 | J24: 0.00 | K24: 30,517.35 | L24: 14,277.12 | M24: 7,138.56 | N24: 7,138.56 | O24: 0.00 | P24: 1,963.11 | Q24: 5,353.92 | R24: 0.00 | S24: 0.00 | T24: 0.00 | U24: 0.00
A25: 213 | B25: 02 | C25: 01 | D25: 行政运行（林业） | E25: 188,415.27 | F25: 152,544.00 | G25: 89,232.00 | H25: 63,312.00 | I25: 0.00 | J25: 0.00 | K25: 30,517.35 | L25: 14,277.12 | M25: 7,138.56 | N25: 7,138.56 | O25: 0.00 | P25: 1,963.11 | Q25: 5,353.92 | R25: 0.00 | S25: 0.00 | T25: 0.00 | U25: 0.00
A26: 220 | D26: 自然资源海洋气象等支出 | E26: =E27 -> 244,562.65 | F26: 198,204.00 | G26: 115,320.00 | H26: 82,884.00 | I26: 0.00 | J26: 0.00 | K26: 39,439.45 | L26: 18,451.20 | M26: 9,225.60 | N26: 9,225.60 | O26: 0.00 | P26: 2,537.05 | Q26: 6,919.20 | R26: 0.00 | S26: 0.00 | T26: 0.00 | U26: 0.00
A27: 220 | B27: 01 | D27: 自然资源事务 | E27: =SUM(E28:E29) -> 244,562.65 | F27: 198,204.00 | G27: 115,320.00 | H27: 82,884.00 | I27: 0.00 | J27: 0.00 | K27: 39,439.45 | L27: 18,451.20 | M27: 9,225.60 | N27: 9,225.60 | O27: 0.00 | P27: 2,537.05 | Q27: 6,919.20 | R27: 0.00 | S27: 0.00 | T27: 0.00 | U27: 0.00
A28: 220 | B28: 01 | C28: 01 | D28: 行政运行（自然资源事务） | E28: 134,450.96 | F28: 107,808.00 | G28: 66,276.00 | H28: 41,532.00 | I28: 0.00 | J28: 0.00 | K28: 22,666.40 | L28: 10,604.16 | M28: 5,302.08 | N28: 5,302.08 | O28: 0.00 | P28: 1,458.08 | Q28: 3,976.56 | R28: 0.00 | S28: 0.00 | T28: 0.00 | U28: 0.00
A29: 220 | B29: 01 | C29: 04 | D29: 国土资源规划及管理 | E29: 110,111.69 | F29: 90,396.00 | G29: 49,044.00 | H29: 41,352.00 | I29: 0.00 | J29: 0.00 | K29: 16,773.05 | L29: 7,847.04 | M29: 3,923.52 | N29: 3,923.52 | O29: 0.00 | P29: 1,078.97 | Q29: 2,942.64 | R29: 0.00 | S29: 0.00 | T29: 0.00 | U29: 0.00
A30: 224 | D30: 灾害防治及应急管理支出 | E30: =E31 -> 283,523.09 | F30: 230,160.00 | G30: 132,744.00 | H30: 97,416.00 | I30: 0.00 | J30: 0.00 | K30: 45,398.45 | L30: 21,239.04 | M30: 10,619.52 | N30: 10,619.52 | O30: 0.00 | P30: 2,920.37 | Q30: 7,964.64 | R30: 0.00 | S30: 0.00 | T30: 0.00 | U30: 0.00
A31: 224 | B31: 01 | D31: 应急管理事物 | E31: =E32 -> 283,523.09 | F31: 230,160.00 | G31: 132,744.00 | H31: 97,416.00 | I31: 0.00 | J31: 0.00 | K31: 45,398.45 | L31: 21,239.04 | M31: 10,619.52 | N31: 10,619.52 | O31: 0.00 | P31: 2,920.37 | Q31: 7,964.64 | R31: 0.00 | S31: 0.00 | T31: 0.00 | U31: 0.00
A32: 224 | B32: 01 | C32: 06 | D32: 安全监管 | E32: 283,523.09 | F32: 230,160.00 | G32: 132,744.00 | H32: 97,416.00 | I32: 0.00 | J32: 0.00 | K32: 45,398.45 | L32: 21,239.04 | M32: 10,619.52 | N32: 10,619.52 | O32: 0.00 | P32: 2,920.37 | Q32: 7,964.64 | R32: 0.00 | S32: 0.00 | T32: 0.00 | U32: 0.00

Sheet 16丶工资福利（政府预算）2
A1: 附件16：
A2: 一般公共预算基本支出预算明细表-工资福利支出(按政府预算经济分类)
A3: 单位名称：洗马乡财政所 | L3: 单位：元
A4: 功能科目 | D4: 功能科目名称 | E4: 总 计 | F4: 机关工资福利支出 | K4: 对事业单位经常性补助
A5: 类 | B5: 款 | C5: 项 | F5: 合计 | G5: 工资奖金津补贴 | H5: 社会保障缴费 | I5: 住房公积金 | J5: 其他工资福利支出 | K5: 合计 | L5: 工资福利支出 | M5: 其他对事业单位补助
D6: 合计 | E6: =E7+E12+E15+E18+E23+E27 -> 2,801,373.46 | F6: 1,307,282.36 | G6: 1,061,268.00 | H6: 209,295.80 | I6: 36,718.56 | J6: 0.00 | K6: 1,494,091.10 | L6: 1,494,091.10 | M6: 0.00
A7: 201 | D7: 一般公共服务支出 | E7: =E8+E10 -> 1,307,282.36 | F7: 1,307,282.36 | G7: 1,061,268.00 | H7: 209,295.80 | I7: 36,718.56 | J7: 0.00 | K7: 0.00 | L7: 0.00 | M7: 0.00
A8: 201 | B8: 03 | D8: 政府办公厅（室）及相关机构事务 | E8: =E9 -> 1,138,241.96 | F8: 1,138,241.96 | G8: 922,860.00 | H8: 183,235.40 | I8: 32,146.56 | J8: 0.00 | K8: 0.00 | L8: 0.00 | M8: 0.00
A9: 201 | B9: 03 | C9: 01 | D9: 行政运行（政府办公厅（室）及相关机构事务） | E9: 1,138,241.96 | F9: 1,138,241.96 | G9: 922,860.00 | H9: 183,235.40 | I9: 32,146.56 | J9: 0.00 | K9: 0.00 | L9: 0.00 | M9: 0.00
A10: 201 | B10: 06 | D10: 财政事务 | E10: =E11 -> 169,040.40 | F10: 169,040.40 | G10: 138,408.00 | H10: 26,060.40 | I10: 4,572.00 | J10: 0.00 | K10: 0.00 | L10: 0.00 | M10: 0.00
A11: 201 | B11: 06 | C11: 01 | D11: 行政运行（财政事务） | E11: 169,040.40 | F11: 169,040.40 | G11: 138,408.00 | H11: 26,060.40 | I11: 4,572.00 | J11: 0.00 | K11: 0.00 | L11: 0.00 | M11: 0.00
A12: 208 | D12: 社会保障和就业支出 | E12: =E13 -> 68,999.91 | F12: 0.00 | G12: 0.00 | H12: 0.00 | I12: 0.00 | J12: 0.00 | K12: 68,999.91 | L12: 68,999.91 | M12: 0.00
A13: 208 | B13: 01 | D13: 人力资源和社会保障管理事务 | E13: =E14 -> 68,999.91 | F13: 0.00 | G13: 0.00 | H13: 0.00 | I13: 0.00 | J13: 0.00 | K13: 68,999.91 | L13: 68,999.91 | M13: 0.00
A14: 208 | B14: 01 | C14: 01 | D14: 行政运行（人力资源和社会保障管理事务） | E14: 68,999.91 | F14: 0.00 | G14: 0.00 | H14: 0.00 | I14: 0.00 | J14: 0.00 | K14: 68,999.91 | L14: 68,999.91 | M14: 0.00
A15: 210 | D15: 卫生健康支出 | E15: =E16 -> 179,868.04 | F15: 0.00 | G15: 0.00 | H15: 0.00 | I15: 0.00 | J15: 0.00 | K15: 179,868.04 | L15: 179,868.04 | M15: 0.00
A16: 210 | B16: 01 | D16: 卫生健康管理事物 | E16: =E17 -> 179,868.04 | F16: 0.00 | G16: 0.00 | H16: 0.00 | I16: 0.00 | J16: 0.00 | K16: 179,868.04 | L16: 179,868.04 | M16: 0.00
A17: 210 | B17: 01 | C17: 01 | D17: 行政运行（卫生健康管理事务） | E17: 179,868.04 | F17: 0.00 | G17: 0.00 | H17: 0.00 | I17: 0.00 | J17: 0.00 | K17: 179,868.04 | L17: 179,868.04 | M17: 0.00
A18: 213 | D18: 农林水支出 | E18: =E19+E21 -> 717,137.41 | F18: 0.00 | G18: 0.00 | H18: 0.00 | I18: 0.00 | J18: 0.00 | K18: 717,137.41 | L18: 717,137.41 | M18: 0.00
A19: 213 | B19: 01 | D19: 农业农村 | E19: =E20 -> 528,722.14 | F19: 0.00 | G19: 0.00 | H19: 0.00 | I19: 0.00 | J19: 0.00 | K19: 528,722.14 | L19: 528,722.14 | M19: 0.00
A20: 213 | B20: 01 | C20: 01 | D20: 行政运行（农业） | E20: 528,722.14 | F20: 0.00 | G20: 0.00 | H20: 0.00 | I20: 0.00 | J20: 0.00 | K20: 528,722.14 | L20: 528,722.14 | M20: 0.00
A21: 213 | B21: 02 | D21: 林业 | E21: =E22 -> 188,415.27 | F21: 0.00 | G21: 0.00 | H21: 0.00 | I21: 0.00 | J21: 0.00 | K21: 188,415.27 | L21: 188,415.27 | M21: 0.00
A22: 213 | B22: 02 | C22: 01 | D22: 行政运行（林业） | E22: 188,415.27 | F22: 0.00 | G22: 0.00 | H22: 0.00 | I22: 0.00 | J22: 0.00 | K22: 188,415.27 | L22: 188,415.27 | M22: 0.00
A23: 220 | D23: 自然资源海洋气象等支出 | E23: =E24 -> 244,562.65 | F23: 0.00 | G23: 0.00 | H23: 0.00 | I23: 0.00 | J23: 0.00 | K23: 244,562.65 | L23: 244,562.65 | M23: 0.00
A24: 220 | B24: 01 | D24: 自然资源事务 | E24: =SUM(E25:E26) -> 244,562.65 | F24: 0.00 | G24: 0.00 | H24: 0.00 | I24: 0.00 | J24: 0.00 | K24: 244,562.65 | L24: 244,562.65 | M24: 0.00
A25: 220 | B25: 01 | C25: 01 | D25: 行政运行（自然资源事务） | E25: 134,450.96 | F25: 0.00 | G25: 0.00 | H25: 0.00 | I25: 0.00 | J25: 0.00 | K25: 134,450.96 | L25: 134,450.96 | M25: 0.00
A26: 220 | B26: 01 | C26: 04 | D26: 国土资源规划及管理 | E26: 110,111.69 | F26: 0.00 | G26: 0.00 | H26: 0.00 | I26: 0.00 | J26: 0.00 | K26: 110,111.69 | L26: 110,111.69 | M26: 0.00
A27: 224 | D27: 灾害防治及应急管理支出 | E27: =E28 -> 283,523.09 | F27: 0.00 | G27: 0.00 | H27: 0.00 | I27: 0.00 | J27: 0.00 | K27: 283,523.09 | L27: 283,523.09 | M27: 0.00
A28: 224 | B28: 01 | D28: 应急管理事物 | E28: =E29 -> 283,523.09 | F28: 0.00 | G28: 0.00 | H28: 0.00 | I28: 0.00 | J28: 0.00 | K28: 283,523.09 | L28: 283,523.09 | M28: 0.00
A29: 224 | B29: 01 | C29: 06 | D29: 安全监管 | E29: 283,523.09 | F29: 0.00 | G29: 0.00 | H29: 0.00 | I29: 0.00 | J29: 0.00 | K29: 283,523.09 | L29: 283,523.09 | M29: 0.00

Sheet 17丶一般-商品服务
A1: 附件17：
A2: 基本支出预算明细表-商品和服务支出(按部门预算经济分类)
A3: 单位名称：洗马乡财政所 | AD3: 单位：元
A4: 功能科目 | D4: 科目名称 | E4: 总 计 | F4: 办公费 | G4: 印刷费 | H4: 咨询费 | I4: 手续费 | J4: 水费 | K4: 电费 | L4: 邮电费 | M4: 取暖费 | N4: 物业管理费 | O4: 差旅费 | P4: 维修(护)费 | Q4: 租赁费 | R4: 会议费 | S4: 培训费 | T4: 公务接待费 | U4: 专用材料费 | V4: 被装购置费 | W4: 专用燃料费 | X4: 劳务费 | Y4: 物业委托费 | Z4: 工会经费 | AA4: 福利费 | AB4: 公务用车运行维护费 | AC4: 其他交通费用 | AD4: 税金及附加费用 | AE4: 其他商品和服务支出
A5: 类 | B5: 款 | C5: 项
D6: 合计 | E6: =E7 -> 1,282,400.00 | F6: 150,000.00 | G6: 273,400.00 | H6: 0.00 | I6: 0.00 | J6: 0.00 | K6: 37,500.00 | L6: 10,000.00 | M6: 0.00 | N6: 0.00 | O6: 255,000.00 | P6: 20,000.00 | Q6: 0.00 | R6: 35,000.00 | S6: 10,000.00 | T6: 90,000.00 | U6: 0.00 | V6: 0.00 | W6: 0.00 | X6: 22,500.00 | Y6: 0.00 | Z6: 73,000.00 | AA6: 0.00 | AB6: 100,000.00 | AC6: 56,000.00 | AD6: 0.00 | AE6: 150,000.00
A7: 201 | D7: 一般公共服务支出 | E7: =E8 -> 1,282,400.00 | F7: 150,000.00 | G7: 273,400.00 | H7: 0.00 | I7: 0.00 | J7: 0.00 | K7: 37,500.00 | L7: 10,000.00 | M7: 0.00 | N7: 0.00 | O7: 255,000.00 | P7: 20,000.00 | Q7: 0.00 | R7: 35,000.00 | S7: 10,000.00 | T7: 90,000.00 | U7: 0.00 | V7: 0.00 | W7: 0.00 | X7: 22,500.00 | Y7: 0.00 | Z7: 73,000.00 | AA7: 0.00 | AB7: 100,000.00 | AC7: 56,000.00 | AD7: 0.00 | AE7: 150,000.00
A8: 201 | B8: 03 | D8: 政府办公厅（室）及相关机构事务 | E8: =E9 -> 1,282,400.00 | F8: 150,000.00 | G8: 273,400.00 | H8: 0.00 | I8: 0.00 | J8: 0.00 | K8: 37,500.00 | L8: 10,000.00 | M8: 0.00 | N8: 0.00 | O8: 255,000.00 | P8: 20,000.00 | Q8: 0.00 | R8: 35,000.00 | S8: 10,000.00 | T8: 90,000.00 | U8: 0.00 | V8: 0.00 | W8: 0.00 | X8: 22,500.00 | Y8: 0.00 | Z8: 73,000.00 | AA8: 0.00 | AB8: 100,000.00 | AC8: 56,000.00 | AD8: 0.00 | AE8: 150,000.00
A9: 201 | B9: 03 | C9: 01 | D9: 行政运行（政府办公厅（室）及相关机构事务） | E9: 1,282,400.00 | F9: 150,000.00 | G9: 273,400.00 | H9: 0.00 | I9: 0.00 | J9: 0.00 | K9: 37,500.00 | L9: 10,000.00 | M9: 0.00 | N9: 0.00 | O9: 255,000.00 | P9: 20,000.00 | Q9: 0.00 | R9: 35,000.00 | S9: 10,000.00 | T9: 90,000.00 | U9: 0.00 | V9: 0.00 | W9: 0.00 | X9: 22,500.00 | Y9: 0.00 | Z9: 73,000.00 | AA9: 0.00 | AB9: 100,000.00 | AC9: 56,000.00 | AD9: 0.00 | AE9: 150,000.00

Sheet 18丶商品服务（政府预算2）
A1: 附件18：
A2: 一般公共预算基本支出预算明细表-商品和服务支出(按政府预算经济分类)
A3: 单位名称：洗马乡财政所 | Q3: 单位：元
A4: 功能科目 | D4: 功能科目名称 | E4: 总计 | F4: 机关商品和服务支出 | P4: 对事业单位经常性补助
A5: 类 | B5: 款 | C5: 项 | F5: 合计 | G5: 办公经费 | H5: 会议费 | I5: 培训费 | J5: 专用材料购置费 | K5: 委托业务费 | L5: 公务接待费 | M5: 公务用车运行维护费 | N5: 维修(护)费 | O5: 其他商品和服务支出 | P5: 合计 | Q5: 商品和服务支出 | R5: 其他对事业单位补助
D6: 合计 | E6: =E7+E10+E13+E16+E21+E25 -> 1,282,400.00 | F6: 1,282,400.00 | G6: 854,900.00 | H6: 35,000.00 | I6: 10,000.00 | J6: 0.00 | K6: 22,500.00 | L6: 90,000.00 | M6: 100,000.00 | N6: 20,000.00 | O6: 150,000.00 | P6: 0.00 | Q6: 0.00 | R6: 0.00
A7: 201 | D7: 一般公共服务支出 | E7: =E8 -> 1,282,400.00 | F7: 1,282,400.00 | G7: 854,900.00 | H7: 35,000.00 | I7: 10,000.00 | J7: 0.00 | K7: 22,500.00 | L7: 90,000.00 | M7: 100,000.00 | N7: 20,000.00 | O7: 150,000.00 | P7: 0.00 | Q7: 0.00 | R7: 0.00
A8: 201 | B8: 03 | D8: 政府办公厅（室）及相关机构事务 | E8: =E9 -> 1,282,400.00 | F8: 1,282,400.00 | G8: 854,900.00 | H8: 35,000.00 | I8: 10,000.00 | J8: 0.00 | K8: 22,500.00 | L8: 90,000.00 | M8: 100,000.00 | N8: 20,000.00 | O8: 150,000.00 | P8: 0.00 | Q8: 0.00 | R8: 0.00
A9: 201 | B9: 03 | C9: 01 | D9: 行政运行（政府办公厅（室）及相关机构事务） | E9: 1,282,400.00 | F9: 1,282,400.00 | G9: 854,900.00 | H9: 35,000.00 | I9: 10,000.00 | J9: 0.00 | K9: 22,500.00 | L9: 90,000.00 | M9: 100,000.00 | N9: 20,000.00 | O9: 150,000.00 | P9: 0.00 | Q9: 0.00 | R9: 0.00
A10: 208 | D10: 社会保障和就业支出 | E10: =E11 -> 0.00 | F10: 0.00 | G10: 0.00 | H10: 0.00 | I10: 0.00 | J10: 0.00 | K10: 0.00 | L10: 0.00 | M10: 0.00 | N10: 0.00 | O10: 0.00 | P10: 0.00 | Q10: 0.00 | R10: 0.00
A11: 208 | B11: 01 | D11: 人力资源和社会保障管理事务 | E11: =E12 -> 0.00 | F11: 0.00 | G11: 0.00 | H11: 0.00 | I11: 0.00 | J11: 0.00 | K11: 0.00 | L11: 0.00 | M11: 0.00 | N11: 0.00 | O11: 0.00 | P11: 0.00 | Q11: 0.00 | R11: 0.00
A12: 208 | B12: 01 | C12: 01 | D12: 行政运行（人力资源和社会保障管理事务） | E12: 0.00 | F12: 0.00 | G12: 0.00 | H12: 0.00 | I12: 0.00 | J12: 0.00 | K12: 0.00 | L12: 0.00 | M12: 0.00 | N12: 0.00 | O12: 0.00 | P12: 0.00 | Q12: 0.00 | R12: 0.00
A13: 210 | D13: 卫生健康支出 | E13: =E14 -> 0.00 | F13: 0.00 | G13: 0.00 | H13: 0.00 | I13: 0.00 | J13: 0.00 | K13: 0.00 | L13: 0.00 | M13: 0.00 | N13: 0.00 | O13: 0.00 | P13: 0.00 | Q13: 0.00 | R13: 0.00
A14: 210 | B14: 01 | D14: 卫生健康管理事物 | E14: =E15 -> 0.00 | F14: 0.00 | G14: 0.00 | H14: 0.00 | I14: 0.00 | J14: 0.00 | K14: 0.00 | L14: 0.00 | M14: 0.00 | N14: 0.00 | O14: 0.00 | P14: 0.00 | Q14: 0.00 | R14: 0.00
A15: 210 | B15: 01 | C15: 01 | D15: 行政运行（卫生健康管理事务） | E15: 0.00 | F15: 0.00 | G15: 0.00 | H15: 0.00 | I15: 0.00 | J15: 0.00 | K15: 0.00 | L15: 0.00 | M15: 0.00 | N15: 0.00 | O15: 0.00 | P15: 0.00 | Q15: 0.00 | R15: 0.00
A16: 213 | D16: 农林水支出 | E16: =E17+E19 -> 0.00 | F16: 0.00 | G16: 0.00 | H16: 0.00 | I16: 0.00 | J16: 0.00 | K16: 0.00 | L16: 0.00 | M16: 0.00 | N16: 0.00 | O16: 0.00 | P16: 0.00 | Q16: 0.00 | R16: 0.00
A17: 213 | B17: 01 | D17: 农业农村 | E17: =E18 -> 0.00 | F17: 0.00 | G17: 0.00 | H17: 0.00 | I17: 0.00 | J17: 0.00 | K17: 0.00 | L17: 0.00 | M17: 0.00 | N17: 0.00 | O17: 0.00 | P17: 0.00 | Q17: 0.00 | R17: 0.00
A18: 213 | B18: 01 | C18: 01 | D18: 行政运行（农业） | E18: 0.00 | F18: 0.00 | G18: 0.00 | H18: 0.00 | I18: 0.00 | J18: 0.00 | K18: 0.00 | L18: 0.00 | M18: 0.00 | N18: 0.00 | O18: 0.00 | P18: 0.00 | Q18: 0.00 | R18: 0.00
A19: 213 | B19: 02 | D19: 林业 | E19: =E20 -> 0.00 | F19: 0.00 | G19: 0.00 | H19: 0.00 | I19: 0.00 | J19: 0.00 | K19: 0.00 | L19: 0.00 | M19: 0.00 | N19: 0.00 | O19: 0.00 | P19: 0.00 | Q19: 0.00 | R19: 0.00
A20: 213 | B20: 02 | C20: 01 | D20: 行政运行（林业） | E20: 0.00 | F20: 0.00 | G20: 0.00 | H20: 0.00 | I20: 0.00 | J20: 0.00 | K20: 0.00 | L20: 0.00 | M20: 0.00 | N20: 0.00 | O20: 0.00 | P20: 0.00 | Q20: 0.00 | R20: 0.00
A21: 220 | D21: 自然资源海洋气象等支出 | E21: =E22 -> 0.00 | F21: 0.00 | G21: 0.00 | H21: 0.00 | I21: 0.00 | J21: 0.00 | K21: 0.00 | L21: 0.00 | M21: 0.00 | N21: 0.00 | O21: 0.00 | P21: 0.00 | Q21: 0.00 | R21: 0.00
A22: 220 | B22: 01 | D22: 自然资源事务 | E22: =SUM(E23:E24) -> 0.00 | F22: 0.00 | G22: 0.00 | H22: 0.00 | I22: 0.00 | J22: 0.00 | K22: 0.00 | L22: 0.00 | M22: 0.00 | N22: 0.00 | O22: 0.00 | P22: 0.00 | Q22: 0.00 | R22: 0.00
A23: 220 | B23: 01 | C23: 01 | D23: 行政运行（自然资源事务） | E23: 0.00 | F23: 0.00 | G23: 0.00 | H23: 0.00 | I23: 0.00 | J23: 0.00 | K23: 0.00 | L23: 0.00 | M23: 0.00 | N23: 0.00 | O23: 0.00 | P23: 0.00 | Q23: 0.00 | R23: 0.00
A24: 220 | B24: 01 | C24: 04 | D24: 国土资源规划及管理 | E24: 0.00 | F24: 0.00 | G24: 0.00 | H24: 0.00 | I24: 0.00 | J24: 0.00 | K24: 0.00 | L24: 0.00 | M24: 0.00 | N24: 0.00 | O24: 0.00 | P24: 0.00 | Q24: 0.00 | R24: 0.00
A25: 224 | D25: 灾害防治及应急管理支出 | E25: =E26 -> 0.00 | F25: 0.00 | G25: 0.00 | H25: 0.00 | I25: 0.00 | J25: 0.00 | K25: 0.00 | L25: 0.00 | M25: 0.00 | N25: 0.00 | O25: 0.00 | P25: 0.00 | Q25: 0.00 | R25: 0.00
A26: 224 | B26: 01 | D26: 应急管理事物 | E26: =E27 -> 0.00 | F26: 0.00 | G26: 0.00 | H26: 0.00 | I26: 0.00 | J26: 0.00 | K26: 0.00 | L26: 0.00 | M26: 0.00 | N26: 0.00 | O26: 0.00 | P26: 0.00 | Q26: 0.00 | R26: 0.00
A27: 224 | B27: 01 | C27: 06 | D27: 安全监管 | E27: 0.00 | F27: 0.00 | G27: 0.00 | H27: 0.00 | I27: 0.00 | J27: 0.00 | K27: 0.00 | L27: 0.00 | M27: 0.00 | N27: 0.00 | O27: 0.00 | P27: 0.00 | Q27: 0.00 | R27: 0.00

Sheet 19丶一般-个人家庭
A1: 附件19：
A2: 一般公共预算基本支出预算明细表-对个人和家庭的补助(按部门预算经济分类)
A3: 单位名称：洗马乡财政所 | P3: 单位：元
A4: 功能科目 | D4: 科目名称 | E4: 总计 | F4: 离休费 | G4: 退休费 | H4: 退职(役)费 | I4: 抚恤金 | J4: 生活补助 | K4: 救济费 | L4: 医疗费补助 | M4: 助学金 | N4: 奖励金 | O4: 个人农业生产补贴 | P4: 公共财政拨款)
A5: 类 | B5: 款 | C5: 项

Sheet 20丶个人家庭（政府预算）2
A1: 附件20：
A2: 一般公共预算基本支出预算明细表-对个人和家庭的补助(按政府预算经济分类)
A3: 单位名称：洗马乡财政所 | J3: 单位：元
A4: 功能科目 | D4: 功能科目名称 | E4: 总计 | F4: 社会福利和救济 | G4: 助学金 | H4: 个人农业生产补贴 | I4: 离退休费 | J4: 其他对个人和家庭的补助
A5: 类 | B5: 款 | C5: 项

Sheet 21丶政府性基金
A1: 附件21：
A2: 政府性基金预算支出情况表(按部门预算经济分类)
A3: 单位名称：洗马乡财政所 | P3: 单位：元
A4: 功能科目 | D4: 科目名称 | E4: 总 计 | F4: 基本支出 | J4: 项目支出
A5: 类 | B5: 款 | C5: 项 | F5: 合计 | G5: 工资福利支出 | H5: 一般商品和服务支出 | I5: 对个人和家庭的补助 | J5: 合计 | K5: 按项目管理的商品和服务支出 | L5: 按项目管理的对个人和家庭的补助 | M5: 资本性支出(基本建设) | N5: 资本性支出 | O5: 对企业补助 | P5: 其他支出

Sheet 22丶政府性基金（政府预算）
A1: 附件22：
A2: 政府性基金预算支出情况表(按政府预算经济分类)
A3: 单位名称：洗马乡财政所 | Q3: 单位：元
A4: 功能科目 | D4: 功能科目名称 | E4: 总 计 | F4: 机关工资福利支出 | G4: 机关商品和服务支出 | H4: 机关资本性支出(一) | I4: 机关资本性支出(二) | J4: 对事业单位经常性补助 | K4: 对事业单位资本性补助 | L4: 对企业补助 | M4: 对企业资本性支出 | N4: 对个人和家庭的补助 | O4: 对社会保障基金补助 | P4: 债务利息及费用支出 | Q4: 其他支出
A5: 类 | B5: 款 | C5: 项

Sheet 23丶专户
A2: 纳入专户管理的非税收入拨款预算分类汇总表(按部门预算经济分类)
A3: 单位名称：洗马乡财政所 | S3: 单位：元
A4: 功能科目 | D4: 科目名称 | E4: 总 计 | F4: 基本支出 | J4: 项目支出 | S4: 上缴政府统筹支出
A5: 类 | B5: 款 | C5: 项 | F5: 合计 | G5: 工资福利支出 | H5: 一般商品和服务支出 | I5: 对个人和家庭的补助 | J5: 合计 | K5: 按项目管理的商品和服务支出 | L5: 按项目管理的对个人和家庭的补助 | M5: 债务利息及费用支出 | N5: 资本性支出(基本建设) | O5: 资本性支出 | P5: 对企业补助(基本建设) | Q5: 对企业补助 | R5: 其他支出

Sheet 24丶专户（政府预算）
A1: 附件24：
A2: 纳入专户管理的非税收入拨款预算分类汇总表(按政府预算经济分类)
A3: 单位名称：洗马乡财政所 | Q3: 单位：元
A4: 功能科目 | D4: 功能科目名称 | E4: 总 计 | F4: 机关工资福利支出 | G4: 机关商品和服务支出 | H4: 机关资本性支出(一) | I4: 机关资本性支出(二) | J4: 对事业单位经常性补助 | K4: 对事业单位资本性补助 | L4: 对企业补助 | M4: 对企业资本性支出 | N4: 对个人和家庭的补助 | O4: 对社会保障基金补助 | P4: 债务利息及费用支出 | Q4: 其他支出
A5: 类 | B5: 款 | C5: 项

Sheet 25丶经费拨款
A1: 附件25：
A2: 一般公共预算拨款--经费拨款预算表(按部门预算经济分类)
A3: 单位名称：洗马乡财政所 | S3: 单位：元
A4: 功能科目 | D4: 科目名称 | E4: 总 计 | F4: 基本支出 | J4: 项目支出 | S4: 上缴政府统筹支出
A5: 类 | B5: 款 | C5: 项 | F5: 合计 | G5: 工资福利支出 | H5: 一般商品和服务支出 | I5: 对个人和家庭的补助 | J5: 合计 | K5: 按项目管理的商品和服务支出 | L5: 按项目管理的对个人和家庭的补助 | M5: 债务利息及费用支出 | N5: 资本性支出(基本建设) | O5: 资本性支出 | P5: 对企业补助(基本建设) | Q5: 对企业补助 | R5: 其他支出
D7: 合计 | E7: =E8+E13+E16+E22+E29+E33 -> 6,160,773.46 | F7: 3,951,373.46 | G7: 2,801,373.46 | H7: 1,150,000.00 | I7: 0.00 | J7: 2,209,400.00 | K7: 2,209,400.00 | L7: 0.00 | M7: 0.00 | N7: 0.00 | O7: 0.00 | P7: 0.00 | Q7: 0.00 | R7: 0.00 | S7: 0.00
A8: 201 | D8: 一般公共服务支出 | E8: =E9+E11 -> 2,457,282.36 | F8: 2,457,282.36 | G8: 1,307,282.36 | H8: 1,150,000.00 | I8: 0.00 | J8: 0.00 | K8: 0.00 | L8: 0.00 | M8: 0.00 | N8: 0.00 | O8: 0.00 | P8: 0.00 | Q8: 0.00 | R8: 0.00 | S8: 0.00
A9: 201 | B9: 03 | D9: 政府办公厅（室）及相关机构事务 | E9: =E10 -> 2,288,241.96 | F9: 2,288,241.96 | G9: 1,138,241.96 | H9: 1,150,000.00 | I9: 0.00 | J9: 0.00 | K9: 0.00 | L9: 0.00 | M9: 0.00 | N9: 0.00 | O9: 0.00 | P9: 0.00 | Q9: 0.00 | R9: 0.00 | S9: 0.00
A10: 201 | B10: 03 | C10: 01 | D10: 行政运行（政府办公厅（室）及相关机构事务） | E10: 2,288,241.96 | F10: 2,288,241.96 | G10: 1,138,241.96 | H10: 1,150,000.00 | I10: 0.00 | J10: 0.00 | K10: 0.00 | L10: 0.00 | M10: 0.00 | N10: 0.00 | O10: 0.00 | P10: 0.00 | Q10: 0.00 | R10: 0.00 | S10: 0.00
A11: 201 | B11: 06 | D11: 财政事务 | E11: =E12 -> 169,040.40 | F11: 169,040.40 | G11: 169,040.40 | H11: 0.00 | I11: 0.00 | J11: 0.00 | K11: 0.00 | L11: 0.00 | M11: 0.00 | N11: 0.00 | O11: 0.00 | P11: 0.00 | Q11: 0.00 | R11: 0.00 | S11: 0.00
A12: 201 | B12: 06 | C12: 01 | D12: 行政运行（财政事务） | E12: 169,040.40 | F12: 169,040.40 | G12: 169,040.40 | H12: 0.00 | I12: 0.00 | J12: 0.00 | K12: 0.00 | L12: 0.00 | M12: 0.00 | N12: 0.00 | O12: 0.00 | P12: 0.00 | Q12: 0.00 | R12: 0.00 | S12: 0.00
A13: 208 | D13: 社会保障和就业支出 | E13: =E14 -> 68,999.91 | F13: 68,999.91 | G13: 68,999.91 | H13: 0.00 | I13: 0.00 | J13: 0.00 | K13: 0.00 | L13: 0.00 | M13: 0.00 | N13: 0.00 | O13: 0.00 | P13: 0.00 | Q13: 0.00 | R13: 0.00 | S13: 0.00
A14: 208 | B14: 01 | D14: 人力资源和社会保障管理事务 | E14: =E15 -> 68,999.91 | F14: 68,999.91 | G14: 68,999.91 | H14: 0.00 | I14: 0.00 | J14: 0.00 | K14: 0.00 | L14: 0.00 | M14: 0.00 | N14: 0.00 | O14: 0.00 | P14: 0.00 | Q14: 0.00 | R14: 0.00 | S14: 0.00
A15: 208 | B15: 01 | C15: 01 | D15: 行政运行（人力资源和社会保障管理事务） | E15: 68,999.91 | F15: 68,999.91 | G15: 68,999.91 | H15: 0.00 | I15: 0.00 | J15: 0.00 | K15: 0.00 | L15: 0.00 | M15: 0.00 | N15: 0.00 | O15: 0.00 | P15: 0.00 | Q15: 0.00 | R15: 0.00 | S15: 0.00
A16: 210 | D16: 卫生健康支出 | E16: =E17+E19 -> 289,868.04 | F16: 179,868.04 | G16: 179,868.04 | H16: 0.00 | I16: 0.00 | J16: 110,000.00 | K16: 110,000.00 | L16: 0.00 | M16: 0.00 | N16: 0.00 | O16: 0.00 | P16: 0.00 | Q16: 0.00 | R16: 0.00 | S16: 0.00
A17: 210 | B17: 01 | D17: 卫生健康管理事物 | E17: =E18 -> 179,868.04 | F17: 179,868.04 | G17: 179,868.04 | H17: 0.00 | I17: 0.00 | J17: 0.00 | K17: 0.00 | L17: 0.00 | M17: 0.00 | N17: 0.00 | O17: 0.00 | P17: 0.00 | Q17: 0.00 | R17: 0.00 | S17: 0.00
A18: 210 | B18: 01 | C18: 01 | D18: 行政运行（卫生健康管理事务） | E18: 179,868.04 | F18: 179,868.04 | G18: 179,868.04 | H18: 0.00 | I18: 0.00 | J18: 0.00 | K18: 0.00 | L18: 0.00 | M18: 0.00 | N18: 0.00 | O18: 0.00 | P18: 0.00 | Q18: 0.00 | R18: 0.00 | S18: 0.00
A19: 210 | B19: 07 | D19: 计划生育事务 | E19: =SUM(E20:E21) -> 110,000.00 | F19: 0.00 | G19: 0.00 | H19: 0.00 | I19: 0.00 | J19: 110,000.00 | K19: 110,000.00 | L19: 0.00 | M19: 0.00 | N19: 0.00 | O19: 0.00 | P19: 0.00 | Q19: 0.00 | R19: 0.00 | S19: 0.00
A20: 210 | B20: 07 | C20: 16 | D20: 计划生育机构 | E20: 31,000.00 | F20: 0.00 | G20: 0.00 | H20: 0.00 | I20: 0.00 | J20: 31,000.00 | K20: 31,000.00 | L20: 0.00 | M20: 0.00 | N20: 0.00 | O20: 0.00 | P20: 0.00 | Q20: 0.00 | R20: 0.00 | S20: 0.00
A21: 210 | B21: 07 | C21: 99 | D21: 其他计划生育事务支出 | E21: 79,000.00 | F21: 0.00 | G21: 0.00 | H21: 0.00 | I21: 0.00 | J21: 79,000.00 | K21: 79,000.00 | L21: 0.00 | M21: 0.00 | N21: 0.00 | O21: 0.00 | P21: 0.00 | Q21: 0.00 | R21: 0.00 | S21: 0.00
A22: 213 | D22: 农林水支出 | E22: =E23+E25+E27 -> 2,816,537.41 | F22: 717,137.41 | G22: 717,137.41 | H22: 0.00 | I22: 0.00 | J22: 2,099,400.00 | K22: 2,099,400.00 | L22: 0.00 | M22: 0.00 | N22: 0.00 | O22: 0.00 | P22: 0.00 | Q22: 0.00 | R22: 0.00 | S22: 0.00
A23: 213 | B23: 01 | D23: 农业农村 | E23: =E24 -> 528,722.14 | F23: 528,722.14 | G23: 528,722.14 | H23: 0.00 | I23: 0.00 | J23: 0.00 | K23: 0.00 | L23: 0.00 | M23: 0.00 | N23: 0.00 | O23: 0.00 | P23: 0.00 | Q23: 0.00 | R23: 0.00 | S23: 0.00
A24: 213 | B24: 01 | C24: 01 | D24: 行政运行（农业） | E24: 528,722.14 | F24: 528,722.14 | G24: 528,722.14 | H24: 0.00 | I24: 0.00 | J24: 0.00 | K24: 0.00 | L24: 0.00 | M24: 0.00 | N24: 0.00 | O24: 0.00 | P24: 0.00 | Q24: 0.00 | R24: 0.00 | S24: 0.00
A25: 213 | B25: 02 | D25: 林业 | E25: =E26 -> 188,415.27 | F25: 188,415.27 | G25: 188,415.27 | H25: 0.00 | I25: 0.00 | J25: 0.00 | K25: 0.00 | L25: 0.00 | M25: 0.00 | N25: 0.00 | O25: 0.00 | P25: 0.00 | Q25: 0.00 | R25: 0.00 | S25: 0.00
A26: 213 | B26: 02 | C26: 01 | D26: 行政运行（林业） | E26: 188,415.27 | F26: 188,415.27 | G26: 188,415.27 | H26: 0.00 | I26: 0.00 | J26: 0.00 | K26: 0.00 | L26: 0.00 | M26: 0.00 | N26: 0.00 | O26: 0.00 | P26: 0.00 | Q26: 0.00 | R26: 0.00 | S26: 0.00
A27: 213 | B27: 07 | D27: 农村综合改革 | E27: =E28 -> 2,099,400.00 | F27: 0.00 | G27: 0.00 | H27: 0.00 | I27: 0.00 | J27: 2,099,400.00 | K27: 2,099,400.00 | L27: 0.00 | M27: 0.00 | N27: 0.00 | O27: 0.00 | P27: 0.00 | Q27: 0.00 | R27: 0.00 | S27: 0.00
A28: 213 | B28: 07 | C28: 05 | D28: 对村民委员会和村党支部的补助 | E28: 2,099,400.00 | F28: 0.00 | G28: 0.00 | H28: 0.00 | I28: 0.00 | J28: 2,099,400.00 | K28: 2,099,400.00 | L28: 0.00 | M28: 0.00 | N28: 0.00 | O28: 0.00 | P28: 0.00 | Q28: 0.00 | R28: 0.00 | S28: 0.00
A29: 220 | D29: 自然资源海洋气象等支出 | E29: =E30 -> 244,562.65 | F29: 244,562.65 | G29: 244,562.65 | H29: 0.00 | I29: 0.00 | J29: 0.00 | K29: 0.00 | L29: 0.00 | M29: 0.00 | N29: 0.00 | O29: 0.00 | P29: 0.00 | Q29: 0.00 | R29: 0.00 | S29: 0.00
A30: 220 | B30: 01 | D30: 自然资源事务 | E30: =SUM(E31:E32) -> 244,562.65 | F30: 244,562.65 | G30: 244,562.65 | H30: 0.00 | I30: 0.00 | J30: 0.00 | K30: 0.00 | L30: 0.00 | M30: 0.00 | N30: 0.00 | O30: 0.00 | P30: 0.00 | Q30: 0.00 | R30: 0.00 | S30: 0.00
A31: 220 | B31: 01 | C31: 01 | D31: 行政运行（自然资源事务） | E31: 134,450.96 | F31: 134,450.96 | G31: 134,450.96 | H31: 0.00 | I31: 0.00 | J31: 0.00 | K31: 0.00 | L31: 0.00 | M31: 0.00 | N31: 0.00 | O31: 0.00 | P31: 0.00 | Q31: 0.00 | R31: 0.00 | S31: 0.00
A32: 220 | B32: 01 | C32: 04 | D32: 国土资源规划及管理 | E32: 110,111.69 | F32: 110,111.69 | G32: 110,111.69 | H32: 0.00 | I32: 0.00 | J32: 0.00 | K32: 0.00 | L32: 0.00 | M32: 0.00 | N32: 0.00 | O32: 0.00 | P32: 0.00 | Q32: 0.00 | R32: 0.00 | S32: 0.00
A33: 224 | D33: 灾害防治及应急管理支出 | E33: =E34 -> 283,523.09 | F33: 283,523.09 | G33: 283,523.09 | H33: 0.00 | I33: 0.00 | J33: 0.00 | K33: 0.00 | L33: 0.00 | M33: 0.00 | N33: 0.00 | O33: 0.00 | P33: 0.00 | Q33: 0.00 | R33: 0.00 | S33: 0.00
A34: 224 | B34: 01 | D34: 应急管理事物 | E34: =E35 -> 283,523.09 | F34: 283,523.09 | G34: 283,523.09 | H34: 0.00 | I34: 0.00 | J34: 0.00 | K34: 0.00 | L34: 0.00 | M34: 0.00 | N34: 0.00 | O34: 0.00 | P34: 0.00 | Q34: 0.00 | R34: 0.00 | S34: 0.00
A35: 224 | B35: 01 | C35: 06 | D35: 安全监管 | E35: 283,523.09 | F35: 283,523.09 | G35: 283,523.09 | H35: 0.00 | I35: 0.00 | J35: 0.00 | K35: 0.00 | L35: 0.00 | M35: 0.00 | N35: 0.00 | O35: 0.00 | P35: 0.00 | Q35: 0.00 | R35: 0.00 | S35: 0.00

Sheet 26丶经费拨款（政府预算）
A1: 附件26：
A2: 一般公共预算拨款--经费拨款预算表(按政府预算经济分类)
A3: 单位名称：洗马乡财政所 | Q3: 单位：元
A4: 功能科目 | D4: 功能科目名称 | E4: 总 计 | F4: 机关工资福利支出 | G4: 机关商品和服务支出 | H4: 机关资本性支出(一) | I4: 机关资本性支出(二) | J4: 对事业单位经常性补助 | K4: 对事业单位资本性补助 | L4: 对企业补助 | M4: 对企业资本性支出 | N4: 对个人和家庭的补助 | O4: 对社会保障基金补助 | P4: 债务利息及费用支出 | Q4: 其他支出
A5: 类 | B5: 款 | C5: 项
D7: 合计 | E7: =E8+E13+E16+E22+E29+E33 -> 6,160,773.46 | F7: 1,307,282.36 | G7: 3,249,400.00 | H7: 0.00 | I7: 0.00 | J7: 1,604,091.10 | K7: 0.00 | L7: 0.00 | M7: 0.00 | N7: 0.00 | O7: 0.00 | P7: 0.00 | Q7: 0.00
A8: 201 | D8: 一般公共服务支出 | E8: =E9+E11 -> 2,457,282.36 | F8: 1,307,282.36 | G8: 1,150,000.00 | H8: 0.00 | I8: 0.00 | J8: 0.00 | K8: 0.00 | L8: 0.00 | M8: 0.00 | N8: 0.00 | O8: 0.00 | P8: 0.00 | Q8: 0.00
A9: 201 | B9: 03 | D9: 政府办公厅（室）及相关机构事务 | E9: =E10 -> 2,288,241.96 | F9: 1,138,241.96 | G9: 1,150,000.00 | H9: 0.00 | I9: 0.00 | J9: 0.00 | K9: 0.00 | L9: 0.00 | M9: 0.00 | N9: 0.00 | O9: 0.00 | P9: 0.00 | Q9: 0.00
A10: 201 | B10: 03 | C10: 01 | D10: 行政运行（政府办公厅（室）及相关机构事务） | E10: 2,288,241.96 | F10: 1,138,241.96 | G10: 1,150,000.00 | H10: 0.00 | I10: 0.00 | J10: 0.00 | K10: 0.00 | L10: 0.00 | M10: 0.00 | N10: 0.00 | O10: 0.00 | P10: 0.00 | Q10: 0.00
A11: 201 | B11: 06 | D11: 财政事务 | E11: =E12 -> 169,040.40 | F11: 169,040.40 | G11: 0.00 | H11: 0.00 | I11: 0.00 | J11: 0.00 | K11: 0.00 | L11: 0.00 | M11: 0.00 | N11: 0.00 | O11: 0.00 | P11: 0.00 | Q11: 0.00
A12: 201 | B12: 06 | C12: 01 | D12: 行政运行（财政事务） | E12: 169,040.40 | F12: 169,040.40 | G12: 0.00 | H12: 0.00 | I12: 0.00 | J12: 0.00 | K12: 0.00 | L12: 0.00 | M12: 0.00 | N12: 0.00 | O12: 0.00 | P12: 0.00 | Q12: 0.00
A13: 208 | D13: 社会保障和就业支出 | E13: =E14 -> 68,999.91 | F13: 0.00 | G13: 0.00 | H13: 0.00 | I13: 0.00 | J13: 68,999.91 | K13: 0.00 | L13: 0.00 | M13: 0.00 | N13: 0.00 | O13: 0.00 | P13: 0.00 | Q13: 0.00
A14: 208 | B14: 01 | D14: 人力资源和社会保障管理事务 | E14: =E15 -> 68,999.91 | F14: 0.00 | G14: 0.00 | H14: 0.00 | I14: 0.00 | J14: 68,999.91 | K14: 0.00 | L14: 0.00 | M14: 0.00 | N14: 0.00 | O14: 0.00 | P14: 0.00 | Q14: 0.00
A15: 208 | B15: 01 | C15: 01 | D15: 行政运行（人力资源和社会保障管理事务） | E15: 68,999.91 | F15: 0.00 | G15: 0.00 | H15: 0.00 | I15: 0.00 | J15: 68,999.91 | K15: 0.00 | L15: 0.00 | M15: 0.00 | N15: 0.00 | O15: 0.00 | P15: 0.00 | Q15: 0.00
A16: 210 | D16: 卫生健康支出 | E16: =E17+E19 -> 289,868.04 | F16: 0.00 | G16: 0.00 | H16: 0.00 | I16: 0.00 | J16: 289,868.04 | K16: 0.00 | L16: 0.00 | M16: 0.00 | N16: 0.00 | O16: 0.00 | P16: 0.00 | Q16: 0.00
A17: 210 | B17: 01 | D17: 卫生健康管理事物 | E17: =E18 -> 179,868.04 | F17: 0.00 | G17: 0.00 | H17: 0.00 | I17: 0.00 | J17: 179,868.04 | K17: 0.00 | L17: 0.00 | M17: 0.00 | N17: 0.00 | O17: 0.00 | P17: 0.00 | Q17: 0.00
A18: 210 | B18: 01 | C18: 01 | D18: 行政运行（卫生健康管理事务） | E18: 179,868.04 | F18: 0.00 | G18: 0.00 | H18: 0.00 | I18: 0.00 | J18: 179,868.04 | K18: 0.00 | L18: 0.00 | M18: 0.00 | N18: 0.00 | O18: 0.00 | P18: 0.00 | Q18: 0.00
A19: 210 | B19: 07 | D19: 计划生育事务 | E19: =SUM(E20:E21) -> 110,000.00 | F19: 0.00 | G19: 0.00 | H19: 0.00 | I19: 0.00 | J19: 110,000.00 | K19: 0.00 | L19: 0.00 | M19: 0.00 | N19: 0.00 | O19: 0.00 | P19: 0.00 | Q19: 0.00
A20: 210 | B20: 07 | C20: 99 | D20: 其他计划生育事务支出 | E20: 79,000.00 | F20: 0.00 | G20: 0.00 | H20: 0.00 | I20: 0.00 | J20: 79,000.00 | K20: 0.00 | L20: 0.00 | M20: 0.00 | N20: 0.00 | O20: 0.00 | P20: 0.00 | Q20: 0.00
A21: 210 | B21: 07 | C21: 16 | D21: 计划生育机构 | E21: 31,000.00 | F21: 0.00 | G21: 0.00 | H21: 0.00 | I21: 0.00 | J21: 31,000.00 | K21: 0.00 | L21: 0.00 | M21: 0.00 | N21: 0.00 | O21: 0.00 | P21: 0.00 | Q21: 0.00
A22: 213 | D22: 农林水支出 | E22: =E23+E25+E27 -> 2,816,537.41 | F22: 0.00 | G22: 2,099,400.00 | H22: 0.00 | I22: 0.00 | J22: 717,137.41 | K22: 0.00 | L22: 0.00 | M22: 0.00 | N22: 0.00 | O22: 0.00 | P22: 0.00 | Q22: 0.00
A23: 213 | B23: 01 | D23: 农业农村 | E23: =E24 -> 528,722.14 | F23: 0.00 | G23: 0.00 | H23: 0.00 | I23: 0.00 | J23: 528,722.14 | K23: 0.00 | L23: 0.00 | M23: 0.00 | N23: 0.00 | O23: 0.00 | P23: 0.00 | Q23: 0.00
A24: 213 | B24: 01 | C24: 01 | D24: 行政运行（农业） | E24: 528,722.14 | F24: 0.00 | G24: 0.00 | H24: 0.00 | I24: 0.00 | J24: 528,722.14 | K24: 0.00 | L24: 0.00 | M24: 0.00 | N24: 0.00 | O24: 0.00 | P24: 0.00 | Q24: 0.00
A25: 213 | B25: 02 | D25: 林业 | E25: =E26 -> 188,415.27 | F25: 0.00 | G25: 0.00 | H25: 0.00 | I25: 0.00 | J25: 188,415.27 | K25: 0.00 | L25: 0.00 | M25: 0.00 | N25: 0.00 | O25: 0.00 | P25: 0.00 | Q25: 0.00
A26: 213 | B26: 02 | C26: 01 | D26: 行政运行（林业） | E26: 188,415.27 | F26: 0.00 | G26: 0.00 | H26: 0.00 | I26: 0.00 | J26: 188,415.27 | K26: 0.00 | L26: 0.00 | M26: 0.00 | N26: 0.00 | O26: 0.00 | P26: 0.00 | Q26: 0.00
A27: 213 | B27: 07 | D27: 农村综合改革 | E27: =E28 -> 2,099,400.00 | F27: 0.00 | G27: 2,099,400.00 | H27: 0.00 | I27: 0.00 | J27: 0.00 | K27: 0.00 | L27: 0.00 | M27: 0.00 | N27: 0.00 | O27: 0.00 | P27: 0.00 | Q27: 0.00
A28: 213 | B28: 07 | C28: 05 | D28: 对村民委员会和村党支部的补助 | E28: 2,099,400.00 | F28: 0.00 | G28: 2,099,400.00 | H28: 0.00 | I28: 0.00 | J28: 0.00 | K28: 0.00 | L28: 0.00 | M28: 0.00 | N28: 0.00 | O28: 0.00 | P28: 0.00 | Q28: 0.00
A29: 220 | D29: 自然资源海洋气象等支出 | E29: =E30 -> 244,562.65 | F29: 0.00 | G29: 0.00 | H29: 0.00 | I29: 0.00 | J29: 244,562.65 | K29: 0.00 | L29: 0.00 | M29: 0.00 | N29: 0.00 | O29: 0.00 | P29: 0.00 | Q29: 0.00
A30: 220 | B30: 01 | D30: 自然资源事务 | E30: =SUM(E31:E32) -> 244,562.65 | F30: 0.00 | G30: 0.00 | H30: 0.00 | I30: 0.00 | J30: 244,562.65 | K30: 0.00 | L30: 0.00 | M30: 0.00 | N30: 0.00 | O30: 0.00 | P30: 0.00 | Q30: 0.00
A31: 220 | B31: 01 | C31: 01 | D31: 行政运行（自然资源事务） | E31: 134,450.96 | F31: 0.00 | G31: 0.00 | H31: 0.00 | I31: 0.00 | J31: 134,450.96 | K31: 0.00 | L31: 0.00 | M31: 0.00 | N31: 0.00 | O31: 0.00 | P31: 0.00 | Q31: 0.00
A32: 220 | B32: 01 | C32: 04 | D32: 国土资源规划及管理 | E32: 110,111.69 | F32: 0.00 | G32: 0.00 | H32: 0.00 | I32: 0.00 | J32: 110,111.69 | K32: 0.00 | L32: 0.00 | M32: 0.00 | N32: 0.00 | O32: 0.00 | P32: 0.00 | Q32: 0.00
A33: 224 | D33: 灾害防治及应急管理支出 | E33: =E34 -> 283,523.09 | F33: 0.00 | G33: 0.00 | H33: 0.00 | I33: 0.00 | J33: 283,523.09 | K33: 0.00 | L33: 0.00 | M33: 0.00 | N33: 0.00 | O33: 0.00 | P33: 0.00 | Q33: 0.00
A34: 224 | B34: 01 | D34: 应急管理事物 | E34: =E35 -> 283,523.09 | F34: 0.00 | G34: 0.00 | H34: 0.00 | I34: 0.00 | J34: 283,523.09 | K34: 0.00 | L34: 0.00 | M34: 0.00 | N34: 0.00 | O34: 0.00 | P34: 0.00 | Q34: 0.00
A35: 224 | B35: 01 | C35: 06 | D35: 安全监管 | E35: 283,523.09 | F35: 0.00 | G35: 0.00 | H35: 0.00 | I35: 0.00 | J35: 283,523.09 | K35: 0.00 | L35: 0.00 | M35: 0.00 | N35: 0.00 | O35: 0.00 | P35: 0.00 | Q35: 0.00

Sheet 27丶专项
A1: 附件27：
A2: 专项资金预算汇总表
A3: 单位名称：洗马乡财政所 | J3: 单位：元
A4: 专项名称 | B4: 总计 | C4: 一般公共预算拨款 | F4: 政府性基金拨款 | G4: 国有资本经营预算拨款 | H4: 纳入专户管理的非税收入拨款 | I4: 上级财政补助
C5: 一般公共预算拨款小计 | D5: 经费拨款 | E5: 纳入一般公共预算管理的非税收入拨款 | I5: 一般公共预算补助 | J5: 政府性基金补助
A8: 合计 | B8: =SUM(B9:B15) -> 2,209,400.00 | C8: 2,209,400.00 | D8: 2,209,400.00 | E8: 0.00 | F8: 0.00 | G8: 0.00 | H8: 0.00 | I8: 0.00 | J8: 0.00
A9: 村级运转经费 | B9: 1,879,400.00 | C9: 1,879,400.00 | D9: 1,879,400.00 | E9: 0.00 | F9: 0.00 | G9: 0.00 | H9: 0.00 | I9: 0.00 | J9: 0.00
A10: 服务群众专项经费 | B10: 220,000.00 | C10: 220,000.00 | D10: 220,000.00 | E10: 0.00 | F10: 0.00 | G10: 0.00 | H10: 0.00 | I10: 0.00 | J10: 0.00
A11: 关爱女孩及两非整治联合工作经费 | B11: 18,000.00 | C11: 18,000.00 | D11: 18,000.00 | E11: 0.00 | F11: 0.00 | G11: 0.00 | H11: 0.00 | I11: 0.00 | J11: 0.00
A12: 计生流动人口管理经费 | B12: 28,000.00 | C12: 28,000.00 | D12: 28,000.00 | E12: 0.00 | F12: 0.00 | G12: 0.00 | H12: 0.00 | I12: 0.00 | J12: 0.00
A13: 计生协会经费投入 | B13: 11,000.00 | C13: 11,000.00 | D13: 11,000.00 | E13: 0.00 | F13: 0.00 | G13: 0.00 | H13: 0.00 | I13: 0.00 | J13: 0.00
A14: 计生专项检查经费 | B14: 22,000.00 | C14: 22,000.00 | D14: 22,000.00 | E14: 0.00 | F14: 0.00 | G14: 0.00 | H14: 0.00 | I14: 0.00 | J14: 0.00
A15: 其他计划生育工作经费 | B15: 31,000.00 | C15: 31,000.00 | D15: 31,000.00 | E15: 0.00 | F15: 0.00 | G15: 0.00 | H15: 0.00 | I15: 0.00 | J15: 0.00

Sheet 28丶三公
A1: 附件28：
A2: 一般公共预算“三公”经费预算表
A3: 单位名称：洗马乡财政所 | G3: 单位：元
A4: 单位名称 | B4: 三公经费预算数(一般公共预算拨款)
B5: 小计 | C5: 公务接待费 | D5: 公务用车购置及运行费 | E5: 其中： | G5: 因公出国(境)费用
E6: 公务用车购置费 | F6: 公务用车运行维护费
A7: 洗马乡政府 | B7: 190,000.00 | C7: 90,000.00 | D7: 100,000.00 | E7: 0.00 | F7: 100,000.00 | G7: 0.00
A8: 注：1、本表公开内容为“三公”经费预算一般公共预算拨款安排情况；
A9: 2、一般公共预算拨款包括经费拨款和纳入一般公共预算管理的非税收入拨款；
A10: 3、公开口径为当年安排数（不含上年结转）。

Sheet 29、专项资金绩效目标表
A1: 附件29：
A2: 专项资金绩效目标表
A3: 单位名称：洗马乡财政所 | T3: 单位：万元
A4: 单位编码 | B4: 单位名称 | C4: 专项名称 | D4: 主管部门 | E4: 专项类别 | F4: 预算类别 | G4: 预算资金（万元） | H4: 产出 | L4: 效益 | Q4: 保障措施
H5: 数量指标 | I5: 质量指标 | J5: 时效指标 | K5: 成本指标 | L5: 经济效益 | M5: 社会效益 | N5: 生态效益 | O5: 可持续影响 | P5: 公众满意度 | Q5: 管理机构 | R5: 资金管理办法 | S5: 项目管理办法 | T5: 实施方案
A6: ** | B6: ** | C6: 1 | D6: 2 | E6: 3 | F6: 4 | G6: 5 | H6: 6 | I6: 7 | J6: 8 | K6: 9 | L6: 10 | M6: 11 | N6: 12 | O6: 13 | P6: 14 | Q6: 15 | R6: 16 | S6: 17 | T6: 18
B7: 合计 | G7: =SUM(G8:G9) -> 220.94
A8: 937002 | B8: 洗马乡政府 | C8: 村级组织运转经费 | D8: 洗马乡财政所 | E8: 专项活动类 | F8: 一般公共预算 | G8: 209.94 | H8: 全镇有行政村11个，在职村干部59人，离任村干部107人 | I8: 村级运转经费按月拨付，在职村干部及离任村干部补贴按月打发发放到个人 | J8: 2020年1月-12月 | K8: 其中村干部工资、离任干部补贴共135.54万元，办公经费48万元，服务群众专项经费22万元及其他费用4.4万元 | M8: 保证村党组织的政策运转，建设美丽乡村，提升群众生活质量，方便群众出行 | P8: 本乡群众满意度为85%以上 | Q8: 洗马乡人民政府 | T8: 洪江市村集体组织财务管理暂行办法
A9: 937002 | B9: 洗马乡政府 | C9: 计生经费 | D9: 洗马乡财政所 | E9: 专项活动类 | F9: 一般公共预算 | G9: 11.00 | H9: 做好全乡11个村的管理和服务工作，确保符合政策生育率95%，出生人口统计率100%，人口信息采集率100%。 | I9: 诚信计生合格率100%，财政投入按照省、市规定标准预算100%落实到位。 | J9: 2020年1月-12月 | K9: 其中计生协会经费1.1万元、计生流动人口管理经费2.8万元、关爱女孩及两非整治1.8万元、其他计生工作经费3.1万元、计生专项坚持经费2.2万元 | M9: 对优生政策落实及计划生育政策的推行 | P9: 本乡群众对计生相关工作满意度为81%以上 | Q9: 洗马乡人民政府 | T9: 2020年村级运转经费计划安排表

Sheet 30、部门整体支出绩效目标表
A1: 附件30：
A2: 部门整体支出绩效目标表
A3: 单位名称：洗马乡财政所 | L3: 单位:元
A4: 单位编码 | B4: 单位名称 | C4: 整体绩效目标 | D4: 产出指标 | H4: 效益指标
D5: 数量指标 | E5: 质量指标 | F5: 时效指标 | G5: 成本指标 | H5: 经济效益 | I5: 社会效益 | J5: 生态效益 | K5: 可持续影响 | L5: 公众满意度
A6: ** | B6: ** | C6: 1 | D6: 2 | E6: 3 | F6: 4 | G6: 5 | H6: 6 | I6: 7 | J6: 8 | K6: 9 | L6: 10
A7: 937002 | B7: 洗马乡政府 | C7: 基层党建活动工作 | D7: 指导全镇11个行政村（村党员452名、乡镇机关党支部党员24名）顺利开展对党的理论知识学习和各项党建工作的展开 | E7: 保证机关的党建工作顺利开展、对基层各村的党建工作进行指导和完善。 | F7: 2020年1-12月 | I7: 树立党政机关的党员优良工作作风。提高党建人员的工作能力 | L7: 全体党员干部参与工作满意度达到85%以上
A8: 937002 | B8: 洗马乡政府 | C8: 综治维稳和安全生产工作 | D8: 指导全乡近17000余人开展综治维稳和发展安全生产工作 | E8: 保证综治民调成绩稳中有升，落实“一单四制”，将一般性生产经营安全事故控制在零起，做到零发生 | F8: 2020年1-12月 | I8: 确保人民群众安全感和幸福感，保证乡镇安全生产工作的顺利展开，确保社会治安稳定。 | L8: 全乡群众对综治维稳工作和安全生产工作满意度达到95%以上
A9: 937002 | B9: 洗马乡政府 | C9: 国防动员工作 | D9: 农村义务征兵2人、30人民兵整组。 | E9: 保证每年农村义务征兵工作完成、完成30人的民兵整组工作、加强武装阵地建设 | F9: 2020年1-12月 | I9: 确保全乡国防能力达标，确保全乡民生安全。 | L9: 全乡群众对国防动员工作满意度达到91%以上
A10: 937002 | B10: 洗马乡政府 | C10: 扶贫工作 | D10: 全乡2有个贫困村，9个非贫困村，共有建档立卡贫困户共482户、1480人。全年洗马乡减少现行国家扶贫标准下农村贫困人口34户。 | E10: 全乡的贫困发生率控制在2%以内，贫困出列村贫困发生率控制在1%左右，完成贫苦人口年度脱贫任务，贫困村发展一个以上特色产业，年度贫困村村集体经济收入达到5万元以上。 | F10: 2020年1-12月 | I10: 确保脱贫人口人均收入稳定超过脱贫标准线 | L10: 所有贫困户及非贫困户的满意度达到90%以上
